Workbook

Sheet ENTREGABLES OT
B3: OTR
B4: FICHERO EAP
B5: - Objetivos
B6: - Requisitos
B7: - Matriz Objetivos vs Requisitos
B8: DOCUMENTO DE ESPECIFICACIÓN DE REQUISITOS
B10: OTA
B11: FICHERO EAP
B12: - Casos de Uso
B13: - Diagrama BPMN
B14: - Catálogo de Actores
B15: - Casos de Uso de Test
B16: - Especificación de UI
B17: - Matriz Requisito vs CU
B18: - Matriz Caso Prueba vs CU
B19: - Modelo de Dominio
B20: DOCUMENTO DE ANÁLISIS DE SISTEMA
B21: PROTOTIPOS
B22: PLAN DE PRUEBAS FUNCIONALES
B23: DOCUMENTO ANÁLISIS SOA
B24: DOCUMENTO ENTORNO TECNOLÓGICO
B26: OTD
B27: FICHERO EAP
B28: - Modelo de Clases
B29: - Modelo de Físico de Datos
B30: - Arquitectura Lógica del Sistema
B31: DOCUMENTO DE DISEÑO DEL SISTEMA
B32: PLAN DE PRUEBAS DE SISTEMA
B34: OTC
B35: PAQUETE DE CÓDIGO (SVN)
B36: PLAN DE PRUEBAS FUNCIONALES DETALLADO (PPF)
B37: GUÍA DE MIGRACIÓN
B38: GUÍA DE PARAMETRIZACIÓN
B39: DEFINICIÓN DEL ALCANCE DE LA MIGRACIÓN
B40: REGISTRO DE EJECUCIÓN DEL PPF
B41: HERRAMIENTA DE MIGRACIÓN
B42: MANUAL DE USUARIO
B43: CONSTRUCCIÓN DE FUNCIONALIDADES/COMPONENTES
B44: PRUEBAS
B45: VALIDACIÓN DEL ALCANCE
B46: OTRAS ACTIVIDADES DE CONSTRUCCIÓN Y PRUEBAS
B48: OTIMPL
B49: PLAN DE FORMACIÓN
B50: PID
B51: INSTALABLE SW
B52: GESTIÓN DE LA IMPLANTACIÓN EN FARO

Sheet FASES-CODIGO JIRA
A1: FASES-TAREAS OT
A2: EE v3.4 F0.Jefe de Proyecto: Gestión de riesgos, conflictos y de recursos materiales escalados por el referente o AP
A3: EE v3.4 F0.Jefe de Proyecto: Gestión del equipo
A4: EE v3.4 F0.jefe de Proyecto: Preparación y asistencia a reuniones
A5: EE v3.4 F0.Jefe de Proyecto: Registrar y asegurar la calidad de las imputaciones de los evolutivos, control y seguimiento de la planificación, OT/s, RFC/s, PL/s
A6: EE v3.4 F0.Referente: Soporte a dudas de otros equipos
A7: EE v3.4 F0.Referente: Soporte funcional a especialista técnico/funcional
A8: EE v3.4 F1.Requisitos: Análisis de la información obtenida y tareas adicionales (peticiones/consulta a otros grupos, etc) incluye Refinamiento
A9: EE v3.4 F1.Requisitos: Entrega EAP (y documentación adicional que se requiera)
A10: EE v3.4 F2.Análisis: Casos de test. Incluye Refinamiento
A11: EE v3.4 F2.Análisis: Entrega EAP (y documentación adicional que se requiera). Incluye refinamiento
A12: EE v3.4 F2.Análisis: Plan de Pruebas Funcionales (PPF), incluye Refinamiento
A13: EE v3.4 F3.Diseño: Ajustes de revisión por parte de arquitectura
A14: EE v3.4 F3.Diseño: Entrega EAP (y documentación adicional que se requiera)
A15: EE v3.4 F3.Diseño: Modelo de Clases y Diagrama UML
A16: EE v3.4 F3.Diseño: Modelo Físico de Datos
A17: EE v3.4 F4.Construcción: Construcción del paquete y entrega PL (revisión sónar, compilación y prueba del compilado, etc.)
A18: EE v3.4 F4.Construcción: Entrega EAP (y documentación adicional que se requiera)
A19: EE v3.4 F4.Construcción: Pruebas/Ejecución interna del PPF
A20: EE v3.4 F4.Construcción-Desarrollo: ECC-XXXX. YYYYYY
A21: EE v3.4 F4.Construcción-Desarrollo: Mejora indicadores Calidad de Integración Continua (Sónar, etc)
A22: EE v3.4 F4.Construcción-Desarrollo: Pruebas de Sistemas
A23: EE v3.4 F4.Construcción-Desarrollo: Pruebas del desarrollo
A24: EE v3.4 F5.Despliegue y Validación Entornos anteriores PRO : Análisis de resultados y candidatos a 'incidencias' (discriminación entre problemas en el entorno, problemas de solapamiento de operaciones con otros validadores, etc.)
A25: EE v3.4 F5.Despliegue y Validación Entornos anteriores PRO : Control previo del entorno: Preparación de juego de datos, usuarios, revisión del estado del entorno, etc, previo y durante los días acordados
A26: EE v3.4 F5.Despliegue y Validación Entornos anteriores PRO : GF: LLamadas de control diarias, resolución de dudas y revisión de correos/documentos con los funcionales, etc
A27: EE v3.4 F5.Despliegue y Validación Entornos anteriores PRO : Hospital: LLamadas de control diarias, resolución de dudas y revisión de correos/documentos con los funcionales, etc
A28: EE v3.4 F5.Despliegue y Validación Entornos anteriores PRO : OCA: LLamadas de control diarias, resolución de dudas y revisión de correos/documentos con los funcionales, etc
A29: EE v3.4 F5.Despliegue y Validación Entornos anteriores PRO : Parametrización y validación de entorno (revisión de BD, logs de Weblogic y aplicación, aplicaciones desplegadas, etc.
A30: EE v3.4 F6.Implantación-PRO: Apoyo a soporte a producción
A31: EE v3.4 F6.Implantación-PRO: Soporte a despliegue y validación de entorno (revisión de BD, logs de Weblogic y aplicación, aplicaciones desplegadas, etc.

Sheet ESTIMACION
Q2: SVT
M3: Incurrido de la Orden de Trabajo | Q3: OTEVS
Q4: OTR
F5: ESTIMACIÓN | L5: TIPO DE OT | M5: OTA | Q5: OTInm
L6: Incurrido de la OT (HBS): | M6: =K17 -> 337.5 | Q6: OTEquipo
B7: Fecha de inicio: | C7: 22/22/2222 | Q7: PST
B8: Fecha de entrega: | C8: 22/22/2222 | L8: REF JIRA | M8: APLICATIVO_1-2345 | Q8: OTA
Q9: OTD
B10: ENTREGABLES | I10: HORAS | J10: MULTP | K10: HBS | Q10: OTC
B11: PAQUETE DE CÓDIGO (SVN) | H11: CO | I11: =SUMIF(ESTIMACION[PERFIL],H11,ESTIMACION[HORAS]) -> 72 | J11: 2 | K11: =SUMIF(ESTIMACION[PERFIL],H11,ESTIMACION[HBS]) -> 144 | Q11: OTAD
B12: PLAN DE PRUEBAS FUNCIONALES DETALLADO (PPF) | H12: AF | I12: =SUMIF(ESTIMACION[PERFIL],H12,ESTIMACION[HORAS]) -> 80 | J12: 1.75 | K12: =SUMIF(ESTIMACION[PERFIL],H12,ESTIMACION[HBS]) -> 140 | Q12: OTADC
B13: GUÍA DE MIGRACIÓN | H13: AP | I13: =SUMIF(ESTIMACION[PERFIL],H13,ESTIMACION[HORAS]) -> 0 | J13: 1.5 | K13: =SUMIF(ESTIMACION[PERFIL],H13,ESTIMACION[HBS]) -> 0 | Q13: OTImpl
B14: GUÍA DE PARAMETRIZACIÓN | H14: PR | I14: =SUMIF(ESTIMACION[PERFIL],H14,ESTIMACION[HORAS]) -> 34 | J14: 1.25 | K14: =SUMIF(ESTIMACION[PERFIL],H14,ESTIMACION[HBS]) -> 42.5 | Q14: OTAgil
B15: DEFINICIÓN DEL ALCANCE DE LA MIGRACIÓN | H15: PJ | I15: =SUMIF(ESTIMACION[PERFIL],H15,ESTIMACION[HORAS]) -> 11 | J15: 1 | K15: =SUMIF(ESTIMACION[PERFIL],H15,ESTIMACION[HBS]) -> 11
B16: REGISTRO DE EJECUCIÓN DEL PPF | H16: H.EXTENDIDO | J16: 1.5 | Q16: PRODUCCION
B17: HERRAMIENTA DE MIGRACIÓN | H17: TOTAL OT | I17: =SUM(I11:I15) -> 197 | K17: =SUM(K11:K15) -> 337.5 | Q17: GESTION
B18: MANUAL DE USUARIO | Q18: REUNION
B19: CONSTRUCCIÓN DE FUNCIONALIDADES/COMPONENTES | I19: HORAS | J19: HBS
B20: PRUEBAS | H20: PRODUCCION | I20: =SUMIF(ESTIMACION[TIPO DE ACTIVIDAD],H20,ESTIMACION[HORAS]) -> 114 | J20: =SUMIF(ESTIMACION[TIPO DE ACTIVIDAD],H20,ESTIMACION[HBS]) -> 184.25
B21: VALIDACIÓN DEL ALCANCE | H21: GESTION | I21: =SUMIF(ESTIMACION[TIPO DE ACTIVIDAD],H21,ESTIMACION[HORAS]) -> 22 | J21: =SUMIF(ESTIMACION[TIPO DE ACTIVIDAD],H21,ESTIMACION[HBS]) -> 34
B22: OTRAS ACTIVIDADES DE CONSTRUCCIÓN Y PRUEBAS | H22: REUNION | I22: =SUMIF(ESTIMACION[TIPO DE ACTIVIDAD],H22,ESTIMACION[HORAS]) -> 61 | J22: =SUMIF(ESTIMACION[TIPO DE ACTIVIDAD],H22,ESTIMACION[HBS]) -> 119.25
I24: =SUM(ESTIMACION[HORAS]) -> 197 | L24: =SUM(ESTIMACION[HBS]) -> 337.5
B25: USUARIO | C25: FECHA | D25: TAREA | E25: FASE PROYECTO / COD. JIRA | F25: COMPONENTE VERSION | G25: TIPO DE ACTIVIDAD | H25: PERFIL | I25: HORAS | J25: MULTP | K25: HORARIO EXTENDIDO | L25: HBS | M25: COMENTARIOS
B26: Analista Funcional 2 | D26: v3.1 Análisis y validación funcional en desa | E26: MEJORA-1235 | F26: APLICATIVO_1 3.1 | G26: PRODUCCION | H26: AF | I26: 6 | J26: =+IFERROR(VLOOKUP(ESTIMACION[[#This Row],[PERFIL]],$H$11:$J$16,3,FALSE),0) -> 1.75 | K26: NO | L26: 10.5
B27: Analista Funcional 1 | D27: CS- análisis 3.1 | E27: MEJORA-1235 | F27: APLICATIVO_1 3.1 | G27: REUNION | H27: AF | I27: 3 | J27: =+IFERROR(VLOOKUP(ESTIMACION[[#This Row],[PERFIL]],$H$11:$J$16,3,FALSE),0) -> 1.75 | K27: NO | L27: 5.25
B28: Analista Funcional 2 | D28: v3.1 Análisis y validación funcional en desa | E28: MEJORA-1235 | F28: CLICSALUD 3.1 | G28: GESTION | H28: AF | I28: 5 | J28: =+IFERROR(VLOOKUP(ESTIMACION[[#This Row],[PERFIL]],$H$11:$J$16,3,FALSE),0) -> 1.75 | K28: NO | L28: 8.75
B29: Programador 1 | D29: ClicSalud 3.1 - Mejoras EIDAS | E29: INCIDENCIA-1125 | F29: CLICSALUD 3.1 | G29: PRODUCCION | H29: PR | I29: 4 | J29: =+IFERROR(VLOOKUP(ESTIMACION[[#This Row],[PERFIL]],$H$11:$J$16,3,FALSE),0) -> 1.25 | K29: NO | L29: 5
B30: Programador 1 | D30: ClicSalud 3.1 - Mejoras EIDAS | E30: INCIDENCIA-1125 | F30: CLICSALUD 3.1 | G30: GESTION | H30: PR | I30: 9 | J30: =+IFERROR(VLOOKUP(ESTIMACION[[#This Row],[PERFIL]],$H$11:$J$16,3,FALSE),0) -> 1.25 | K30: NO | L30: 11.25
B31: Analista Funcional 2 | D31: v3.1 Análisis y validación funcional en desa | E31: INCIDENCIA-1125 | F31: CLICSALUD 3.1 | G31: PRODUCCION | H31: AF | I31: 5 | J31: =+IFERROR(VLOOKUP(ESTIMACION[[#This Row],[PERFIL]],$H$11:$J$16,3,FALSE),0) -> 1.75 | K31: NO | L31: 8.75
B32: Programador Junior 2 | D32: ClicSalud 3.1 - Mejoras EIDAS | E32: MEJORA-1426 | F32: CLICSALUD 3.1 | G32: PRODUCCION | H32: PJ | I32: 3 | J32: =+IFERROR(VLOOKUP(ESTIMACION[[#This Row],[PERFIL]],$H$11:$J$16,3,FALSE),0) -> 1 | K32: NO | L32: 3
B33: Analista Funcional 2 | D33: v3.1 Análisis y validación funcional en desa | E33: MEJORA-1426 | F33: CLICSALUD 3.1 | G33: GESTION | H33: AF | I33: 8 | J33: =+IFERROR(VLOOKUP(ESTIMACION[[#This Row],[PERFIL]],$H$11:$J$16,3,FALSE),0) -> 1.75 | K33: NO | L33: 14
B34: Analista Funcional 1 | D34: CS- análisis 3.1 | E34: INCIDENCIA-1125 | F34: CLICSALUD 3.1 | G34: PRODUCCION | H34: AF | I34: 9 | J34: =+IFERROR(VLOOKUP(ESTIMACION[[#This Row],[PERFIL]],$H$11:$J$16,3,FALSE),0) -> 1.75 | K34: NO | L34: 15.75
B35: Programador 1 | D35: ClicSalud 3.1 - Mejoras EIDAS | E35: INCIDENCIA-1125 | F35: CLICSALUD 3.1 | G35: PRODUCCION | H35: PR | I35: 3 | J35: =+IFERROR(VLOOKUP(ESTIMACION[[#This Row],[PERFIL]],$H$11:$J$16,3,FALSE),0) -> 1.25 | K35: NO | L35: 3.75
B36: Analista Funcional 2 | D36: v3.1 Análisis y validación funcional en desa | E36: MEJORA-1235 | F36: CLICSALUD 3.1 | G36: REUNION | H36: AF | I36: 8 | J36: =+IFERROR(VLOOKUP(ESTIMACION[[#This Row],[PERFIL]],$H$11:$J$16,3,FALSE),0) -> 1.75 | K36: NO | L36: 14
B37: Analista Funcional 1 | D37: CS- análisis 3.2.1 | E37: INCI3ENCIALU-1125 | F37: CLICSALUD 3.2.1 | G37: PRODUCCION | H37: AF | I37: 7 | J37: =+IFERROR(VLOOKUP(ESTIMACION[[#This Row],[PERFIL]],$H$11:$J$16,3,FALSE),0) -> 1.75 | K37: NO | L37: 12.25
B38: Analista Funcional 2 | D38: v3.2.1 Análisis y validación funcional en desa | E38: INCI3ENCIALU-1125 | F38: CLICSALUD 3.2.1 | G38: PRODUCCION | H38: AF | I38: 6.5 | J38: =+IFERROR(VLOOKUP(ESTIMACION[[#This Row],[PERFIL]],$H$11:$J$16,3,FALSE),0) -> 1.75 | K38: NO | L38: 11.375
B39: Programador Junior 2 | D39: CS 3.2.1 - Cambios en EIDAS | E39: MEJORA-2426 | F39: CLICSALUD 3.2.1 | G39: PRODUCCION | H39: PJ | I39: 5 | J39: =+IFERROR(VLOOKUP(ESTIMACION[[#This Row],[PERFIL]],$H$11:$J$16,3,FALSE),0) -> 1 | K39: NO | L39: 5
B40: Analista Funcional 2 | D40: v3.2.1 Análisis y validación funcional en desa | E40: MEJORALU-1426 | F40: CLICSALUD 3.2.1 | G40: PRODUCCION | H40: AF | I40: 3 | J40: =+IFERROR(VLOOKUP(ESTIMACION[[#This Row],[PERFIL]],$H$11:$J$16,3,FALSE),0) -> 1.75 | K40: NO | L40: 5.25
B41: Programador 1 | D41: ClicSalud 3.2.1 - Mejoras EIDAS | E41: INCI3ENCIALU-1125 | F41: CLICSALUD 3.2.1 | G41: PRODUCCION | H41: PR | I41: 5 | J41: =+IFERROR(VLOOKUP(ESTIMACION[[#This Row],[PERFIL]],$H$11:$J$16,3,FALSE),0) -> 1.25 | K41: NO | L41: 6.25
B42: Equipo Calidad | D42: CLICSALUD v3.1.0.1 Instalaciones en Calidad y entrega a Cliente | E42: MEJORALU-1426 | F42: CLICSALUD 3.1 | G42: PRODUCCION | H42: CO | I42: 6 | J42: =+IFERROR(VLOOKUP(ESTIMACION[[#This Row],[PERFIL]],$H$11:$J$16,3,FALSE),0) -> 2 | K42: NO | L42: 12
B43: Equipo Desarrollo 2 | D43: CS 3.1 - Cambios en EIDAS | E43: INCIDENCIA-1125 | F43: CLICSALUD 3.1 | G43: PRODUCCION | H43: PR | I43: 8 | J43: =+IFERROR(VLOOKUP(ESTIMACION[[#This Row],[PERFIL]],$H$11:$J$16,3,FALSE),0) -> 1.25 | K43: NO | L43: 10
B44: Jefe de Proyecto | D44: Gestión | E44: MEJORALU-1426 | F44: CLICSALUD 3.1 | G44: PRODUCCION | H44: CO | I44: 8 | J44: =+IFERROR(VLOOKUP(ESTIMACION[[#This Row],[PERFIL]],$H$11:$J$16,3,FALSE),0) -> 2 | K44: NO | L44: 16
B45: Analista Funcional 2 | D45: Validación funcional CS+ v3.1 PRE | E45: INCIDENCIA-1125 | F45: CLICSALUD 3.1 | G45: PRODUCCION | H45: AF | I45: 4.5 | J45: =+IFERROR(VLOOKUP(ESTIMACION[[#This Row],[PERFIL]],$H$11:$J$16,3,FALSE),0) -> 1.75 | K45: NO | L45: 7.875
B46: Analista Funcional 2 | D46: v3.1 Análisis y validación funcional en desa | E46: MEJORA-1235 | F46: CLICSALUD 3.1 | G46: PRODUCCION | H46: AF | I46: 6 | J46: =+IFERROR(VLOOKUP(ESTIMACION[[#This Row],[PERFIL]],$H$11:$J$16,3,FALSE),0) -> 1.75 | K46: NO | L46: 10.5
B47: Equipo Desarrollo 2 | D47: v3.1 Cambios EIDAS Implantación PRO | E47: INCIDENCIA-1125 | F47: CLICSALUD 3.1 | G47: PRODUCCION | H47: PR | I47: 5 | J47: =+IFERROR(VLOOKUP(ESTIMACION[[#This Row],[PERFIL]],$H$11:$J$16,3,FALSE),0) -> 1.25 | K47: NO | L47: 6.25
B48: Jefe de Proyecto | D48: Gestión | E48: MEJORA-2426 | F48: CLICSALUD 3.1 | G48: PRODUCCION | H48: CO | I48: 8 | J48: =+IFERROR(VLOOKUP(ESTIMACION[[#This Row],[PERFIL]],$H$11:$J$16,3,FALSE),0) -> 2 | K48: NO | L48: 16
B49: Analista Funcional 2 | D49: v3.1 Análisis y validación funcional en desa | E49: INCIDENCIA-1125 | F49: CLICSALUD 3.1 | G49: PRODUCCION | H49: AF | I49: 5 | J49: =+IFERROR(VLOOKUP(ESTIMACION[[#This Row],[PERFIL]],$H$11:$J$16,3,FALSE),0) -> 1.75 | K49: NO | L49: 8.75
B50: Analista Funcional 2 | D50: v3.1 Análisis y validación funcional en desa | E50: INCIDENCIA-1125 | F50: CLICSALUD 3.1 | G50: PRODUCCION | H50: AF | I50: 2 | J50: =+IFERROR(VLOOKUP(ESTIMACION[[#This Row],[PERFIL]],$H$11:$J$16,3,FALSE),0) -> 1.75 | K50: NO | L50: 3.5
B51: Analista Funcional 1 | D51: CS- análisis 3.1 | E51: MEJORA-1235 | F51: CLICSALUD 3.1 | G51: PRODUCCION | H51: AF | I51: 2 | J51: =+IFERROR(VLOOKUP(ESTIMACION[[#This Row],[PERFIL]],$H$11:$J$16,3,FALSE),0) -> 1.75 | K51: NO | L51: 3.5
B52: Analista Funcional 2 | D52: v3.1 Análisis y validación funcional en desa | E52: MEJORA-1235 | F52: CLICSALUD 3.1 | G52: PRODUCCION | H52: PJ | I52: 3 | J52: =+IFERROR(VLOOKUP(ESTIMACION[[#This Row],[PERFIL]],$H$11:$J$16,3,FALSE),0) -> 1 | K52: NO | L52: 3
D53: v3.2 Análisis y validación funcional en desa | E53: MEJORA-2426 | F53: CLICSALUD 4.0 | G53: REUNION | H53: CO | I53: 50 | J53: =+IFERROR(VLOOKUP(ESTIMACION[[#This Row],[PERFIL]],$H$11:$J$16,3,FALSE),0) -> 2 | K53: NO | L53: 100
J54: =+IFERROR(VLOOKUP(ESTIMACION[[#This Row],[PERFIL]],$H$11:$J$16,3,FALSE),0) -> 0 | L54: =+ESTIMACION[[#This Row],[HORAS]]*ESTIMACION[[#This Row],[MULTP]]*ESTIMACION[[#This Row],[HORARIO EXTENDIDO]] -> 0
J55: =+IFERROR(VLOOKUP(ESTIMACION[[#This Row],[PERFIL]],$H$11:$J$16,3,FALSE),0) -> 0 | L55: =+ESTIMACION[[#This Row],[HORAS]]*ESTIMACION[[#This Row],[MULTP]]*ESTIMACION[[#This Row],[HORARIO EXTENDIDO]] -> 0
J56: =+IFERROR(VLOOKUP(ESTIMACION[[#This Row],[PERFIL]],$H$11:$J$16,3,FALSE),0) -> 0 | L56: =+ESTIMACION[[#This Row],[HORAS]]*ESTIMACION[[#This Row],[MULTP]]*ESTIMACION[[#This Row],[HORARIO EXTENDIDO]] -> 0
J57: =+IFERROR(VLOOKUP(ESTIMACION[[#This Row],[PERFIL]],$H$11:$J$16,3,FALSE),0) -> 0 | L57: =+ESTIMACION[[#This Row],[HORAS]]*ESTIMACION[[#This Row],[MULTP]]*ESTIMACION[[#This Row],[HORARIO EXTENDIDO]] -> 0
J58: =+IFERROR(VLOOKUP(ESTIMACION[[#This Row],[PERFIL]],$H$11:$J$16,3,FALSE),0) -> 0 | L58: =+ESTIMACION[[#This Row],[HORAS]]*ESTIMACION[[#This Row],[MULTP]]*ESTIMACION[[#This Row],[HORARIO EXTENDIDO]] -> 0
J59: =+IFERROR(VLOOKUP(ESTIMACION[[#This Row],[PERFIL]],$H$11:$J$16,3,FALSE),0) -> 0 | L59: =+ESTIMACION[[#This Row],[HORAS]]*ESTIMACION[[#This Row],[MULTP]]*ESTIMACION[[#This Row],[HORARIO EXTENDIDO]] -> 0
J60: =+IFERROR(VLOOKUP(ESTIMACION[[#This Row],[PERFIL]],$H$11:$J$16,3,FALSE),0) -> 0 | L60: =+ESTIMACION[[#This Row],[HORAS]]*ESTIMACION[[#This Row],[MULTP]]*ESTIMACION[[#This Row],[HORARIO EXTENDIDO]] -> 0
J61: =+IFERROR(VLOOKUP(ESTIMACION[[#This Row],[PERFIL]],$H$11:$J$16,3,FALSE),0) -> 0 | L61: =+ESTIMACION[[#This Row],[HORAS]]*ESTIMACION[[#This Row],[MULTP]]*ESTIMACION[[#This Row],[HORARIO EXTENDIDO]] -> 0
J62: =+IFERROR(VLOOKUP(ESTIMACION[[#This Row],[PERFIL]],$H$11:$J$16,3,FALSE),0) -> 0 | L62: =+ESTIMACION[[#This Row],[HORAS]]*ESTIMACION[[#This Row],[MULTP]]*ESTIMACION[[#This Row],[HORARIO EXTENDIDO]] -> 0
J63: =+IFERROR(VLOOKUP(ESTIMACION[[#This Row],[PERFIL]],$H$11:$J$16,3,FALSE),0) -> 0 | L63: =+ESTIMACION[[#This Row],[HORAS]]*ESTIMACION[[#This Row],[MULTP]]*ESTIMACION[[#This Row],[HORARIO EXTENDIDO]] -> 0
J64: =+IFERROR(VLOOKUP(ESTIMACION[[#This Row],[PERFIL]],$H$11:$J$16,3,FALSE),0) -> 0 | L64: =+ESTIMACION[[#This Row],[HORAS]]*ESTIMACION[[#This Row],[MULTP]]*ESTIMACION[[#This Row],[HORARIO EXTENDIDO]] -> 0
J65: =+IFERROR(VLOOKUP(ESTIMACION[[#This Row],[PERFIL]],$H$11:$J$16,3,FALSE),0) -> 0 | L65: =+ESTIMACION[[#This Row],[HORAS]]*ESTIMACION[[#This Row],[MULTP]]*ESTIMACION[[#This Row],[HORARIO EXTENDIDO]] -> 0
J66: =+IFERROR(VLOOKUP(ESTIMACION[[#This Row],[PERFIL]],$H$11:$J$16,3,FALSE),0) -> 0 | L66: =+ESTIMACION[[#This Row],[HORAS]]*ESTIMACION[[#This Row],[MULTP]]*ESTIMACION[[#This Row],[HORARIO EXTENDIDO]] -> 0
J67: =+IFERROR(VLOOKUP(ESTIMACION[[#This Row],[PERFIL]],$H$11:$J$16,3,FALSE),0) -> 0 | L67: =+ESTIMACION[[#This Row],[HORAS]]*ESTIMACION[[#This Row],[MULTP]]*ESTIMACION[[#This Row],[HORARIO EXTENDIDO]] -> 0
J68: =+IFERROR(VLOOKUP(ESTIMACION[[#This Row],[PERFIL]],$H$11:$J$16,3,FALSE),0) -> 0 | L68: =+ESTIMACION[[#This Row],[HORAS]]*ESTIMACION[[#This Row],[MULTP]]*ESTIMACION[[#This Row],[HORARIO EXTENDIDO]] -> 0
J69: =+IFERROR(VLOOKUP(ESTIMACION[[#This Row],[PERFIL]],$H$11:$J$16,3,FALSE),0) -> 0 | L69: =+ESTIMACION[[#This Row],[HORAS]]*ESTIMACION[[#This Row],[MULTP]]*ESTIMACION[[#This Row],[HORARIO EXTENDIDO]] -> 0
J70: =+IFERROR(VLOOKUP(ESTIMACION[[#This Row],[PERFIL]],$H$11:$J$16,3,FALSE),0) -> 0 | L70: =+ESTIMACION[[#This Row],[HORAS]]*ESTIMACION[[#This Row],[MULTP]]*ESTIMACION[[#This Row],[HORARIO EXTENDIDO]] -> 0
J71: =+IFERROR(VLOOKUP(ESTIMACION[[#This Row],[PERFIL]],$H$11:$J$16,3,FALSE),0) -> 0 | L71: =+ESTIMACION[[#This Row],[HORAS]]*ESTIMACION[[#This Row],[MULTP]]*ESTIMACION[[#This Row],[HORARIO EXTENDIDO]] -> 0
J72: =+IFERROR(VLOOKUP(ESTIMACION[[#This Row],[PERFIL]],$H$11:$J$16,3,FALSE),0) -> 0 | L72: =+ESTIMACION[[#This Row],[HORAS]]*ESTIMACION[[#This Row],[MULTP]]*ESTIMACION[[#This Row],[HORARIO EXTENDIDO]] -> 0
J73: =+IFERROR(VLOOKUP(ESTIMACION[[#This Row],[PERFIL]],$H$11:$J$16,3,FALSE),0) -> 0 | L73: =+ESTIMACION[[#This Row],[HORAS]]*ESTIMACION[[#This Row],[MULTP]]*ESTIMACION[[#This Row],[HORARIO EXTENDIDO]] -> 0
J74: =+IFERROR(VLOOKUP(ESTIMACION[[#This Row],[PERFIL]],$H$11:$J$16,3,FALSE),0) -> 0 | L74: =+ESTIMACION[[#This Row],[HORAS]]*ESTIMACION[[#This Row],[MULTP]]*ESTIMACION[[#This Row],[HORARIO EXTENDIDO]] -> 0
J75: =+IFERROR(VLOOKUP(ESTIMACION[[#This Row],[PERFIL]],$H$11:$J$16,3,FALSE),0) -> 0 | L75: =+ESTIMACION[[#This Row],[HORAS]]*ESTIMACION[[#This Row],[MULTP]]*ESTIMACION[[#This Row],[HORARIO EXTENDIDO]] -> 0
J76: =+IFERROR(VLOOKUP(ESTIMACION[[#This Row],[PERFIL]],$H$11:$J$16,3,FALSE),0) -> 0 | L76: =+ESTIMACION[[#This Row],[HORAS]]*ESTIMACION[[#This Row],[MULTP]]*ESTIMACION[[#This Row],[HORARIO EXTENDIDO]] -> 0
J77: =+IFERROR(VLOOKUP(ESTIMACION[[#This Row],[PERFIL]],$H$11:$J$16,3,FALSE),0) -> 0 | L77: =+ESTIMACION[[#This Row],[HORAS]]*ESTIMACION[[#This Row],[MULTP]]*ESTIMACION[[#This Row],[HORARIO EXTENDIDO]] -> 0
J78: =+IFERROR(VLOOKUP(ESTIMACION[[#This Row],[PERFIL]],$H$11:$J$16,3,FALSE),0) -> 0 | L78: =+ESTIMACION[[#This Row],[HORAS]]*ESTIMACION[[#This Row],[MULTP]]*ESTIMACION[[#This Row],[HORARIO EXTENDIDO]] -> 0
J79: =+IFERROR(VLOOKUP(ESTIMACION[[#This Row],[PERFIL]],$H$11:$J$16,3,FALSE),0) -> 0 | L79: =+ESTIMACION[[#This Row],[HORAS]]*ESTIMACION[[#This Row],[MULTP]]*ESTIMACION[[#This Row],[HORARIO EXTENDIDO]] -> 0
J80: =+IFERROR(VLOOKUP(ESTIMACION[[#This Row],[PERFIL]],$H$11:$J$16,3,FALSE),0) -> 0 | L80: =+ESTIMACION[[#This Row],[HORAS]]*ESTIMACION[[#This Row],[MULTP]]*ESTIMACION[[#This Row],[HORARIO EXTENDIDO]] -> 0
J81: =+IFERROR(VLOOKUP(ESTIMACION[[#This Row],[PERFIL]],$H$11:$J$16,3,FALSE),0) -> 0 | L81: =+ESTIMACION[[#This Row],[HORAS]]*ESTIMACION[[#This Row],[MULTP]]*ESTIMACION[[#This Row],[HORARIO EXTENDIDO]] -> 0
J82: =+IFERROR(VLOOKUP(ESTIMACION[[#This Row],[PERFIL]],$H$11:$J$16,3,FALSE),0) -> 0 | L82: =+ESTIMACION[[#This Row],[HORAS]]*ESTIMACION[[#This Row],[MULTP]]*ESTIMACION[[#This Row],[HORARIO EXTENDIDO]] -> 0
J83: =+IFERROR(VLOOKUP(ESTIMACION[[#This Row],[PERFIL]],$H$11:$J$16,3,FALSE),0) -> 0 | L83: =+ESTIMACION[[#This Row],[HORAS]]*ESTIMACION[[#This Row],[MULTP]]*ESTIMACION[[#This Row],[HORARIO EXTENDIDO]] -> 0
J84: =+IFERROR(VLOOKUP(ESTIMACION[[#This Row],[PERFIL]],$H$11:$J$16,3,FALSE),0) -> 0 | L84: =+ESTIMACION[[#This Row],[HORAS]]*ESTIMACION[[#This Row],[MULTP]]*ESTIMACION[[#This Row],[HORARIO EXTENDIDO]] -> 0
J85: =+IFERROR(VLOOKUP(ESTIMACION[[#This Row],[PERFIL]],$H$11:$J$16,3,FALSE),0) -> 0 | L85: =+ESTIMACION[[#This Row],[HORAS]]*ESTIMACION[[#This Row],[MULTP]]*ESTIMACION[[#This Row],[HORARIO EXTENDIDO]] -> 0
J86: =+IFERROR(VLOOKUP(ESTIMACION[[#This Row],[PERFIL]],$H$11:$J$16,3,FALSE),0) -> 0 | L86: =+ESTIMACION[[#This Row],[HORAS]]*ESTIMACION[[#This Row],[MULTP]]*ESTIMACION[[#This Row],[HORARIO EXTENDIDO]] -> 0
J87: =+IFERROR(VLOOKUP(ESTIMACION[[#This Row],[PERFIL]],$H$11:$J$16,3,FALSE),0) -> 0 | L87: =+ESTIMACION[[#This Row],[HORAS]]*ESTIMACION[[#This Row],[MULTP]]*ESTIMACION[[#This Row],[HORARIO EXTENDIDO]] -> 0
J88: =+IFERROR(VLOOKUP(ESTIMACION[[#This Row],[PERFIL]],$H$11:$J$16,3,FALSE),0) -> 0 | L88: =+ESTIMACION[[#This Row],[HORAS]]*ESTIMACION[[#This Row],[MULTP]]*ESTIMACION[[#This Row],[HORARIO EXTENDIDO]] -> 0
J89: =+IFERROR(VLOOKUP(ESTIMACION[[#This Row],[PERFIL]],$H$11:$J$16,3,FALSE),0) -> 0 | L89: =+ESTIMACION[[#This Row],[HORAS]]*ESTIMACION[[#This Row],[MULTP]]*ESTIMACION[[#This Row],[HORARIO EXTENDIDO]] -> 0
J90: =+IFERROR(VLOOKUP(ESTIMACION[[#This Row],[PERFIL]],$H$11:$J$16,3,FALSE),0) -> 0 | L90: =+ESTIMACION[[#This Row],[HORAS]]*ESTIMACION[[#This Row],[MULTP]]*ESTIMACION[[#This Row],[HORARIO EXTENDIDO]] -> 0
J91: =+IFERROR(VLOOKUP(ESTIMACION[[#This Row],[PERFIL]],$H$11:$J$16,3,FALSE),0) -> 0 | L91: =+ESTIMACION[[#This Row],[HORAS]]*ESTIMACION[[#This Row],[MULTP]]*ESTIMACION[[#This Row],[HORARIO EXTENDIDO]] -> 0
J92: =+IFERROR(VLOOKUP(ESTIMACION[[#This Row],[PERFIL]],$H$11:$J$16,3,FALSE),0) -> 0 | L92: =+ESTIMACION[[#This Row],[HORAS]]*ESTIMACION[[#This Row],[MULTP]]*ESTIMACION[[#This Row],[HORARIO EXTENDIDO]] -> 0
J93: =+IFERROR(VLOOKUP(ESTIMACION[[#This Row],[PERFIL]],$H$11:$J$16,3,FALSE),0) -> 0 | L93: =+ESTIMACION[[#This Row],[HORAS]]*ESTIMACION[[#This Row],[MULTP]]*ESTIMACION[[#This Row],[HORARIO EXTENDIDO]] -> 0
J94: =+IFERROR(VLOOKUP(ESTIMACION[[#This Row],[PERFIL]],$H$11:$J$16,3,FALSE),0) -> 0 | L94: =+ESTIMACION[[#This Row],[HORAS]]*ESTIMACION[[#This Row],[MULTP]]*ESTIMACION[[#This Row],[HORARIO EXTENDIDO]] -> 0
J95: =+IFERROR(VLOOKUP(ESTIMACION[[#This Row],[PERFIL]],$H$11:$J$16,3,FALSE),0) -> 0 | L95: =+ESTIMACION[[#This Row],[HORAS]]*ESTIMACION[[#This Row],[MULTP]]*ESTIMACION[[#This Row],[HORARIO EXTENDIDO]] -> 0
J96: =+IFERROR(VLOOKUP(ESTIMACION[[#This Row],[PERFIL]],$H$11:$J$16,3,FALSE),0) -> 0 | L96: =+ESTIMACION[[#This Row],[HORAS]]*ESTIMACION[[#This Row],[MULTP]]*ESTIMACION[[#This Row],[HORARIO EXTENDIDO]] -> 0
J97: =+IFERROR(VLOOKUP(ESTIMACION[[#This Row],[PERFIL]],$H$11:$J$16,3,FALSE),0) -> 0 | L97: =+ESTIMACION[[#This Row],[HORAS]]*ESTIMACION[[#This Row],[MULTP]]*ESTIMACION[[#This Row],[HORARIO EXTENDIDO]] -> 0
J98: =+IFERROR(VLOOKUP(ESTIMACION[[#This Row],[PERFIL]],$H$11:$J$16,3,FALSE),0) -> 0 | L98: =+ESTIMACION[[#This Row],[HORAS]]*ESTIMACION[[#This Row],[MULTP]]*ESTIMACION[[#This Row],[HORARIO EXTENDIDO]] -> 0
J99: =+IFERROR(VLOOKUP(ESTIMACION[[#This Row],[PERFIL]],$H$11:$J$16,3,FALSE),0) -> 0 | L99: =+ESTIMACION[[#This Row],[HORAS]]*ESTIMACION[[#This Row],[MULTP]]*ESTIMACION[[#This Row],[HORARIO EXTENDIDO]] -> 0
J100: =+IFERROR(VLOOKUP(ESTIMACION[[#This Row],[PERFIL]],$H$11:$J$16,3,FALSE),0) -> 0 | L100: =+ESTIMACION[[#This Row],[HORAS]]*ESTIMACION[[#This Row],[MULTP]]*ESTIMACION[[#This Row],[HORARIO EXTENDIDO]] -> 0
J101: =+IFERROR(VLOOKUP(ESTIMACION[[#This Row],[PERFIL]],$H$11:$J$16,3,FALSE),0) -> 0 | L101: =+ESTIMACION[[#This Row],[HORAS]]*ESTIMACION[[#This Row],[MULTP]]*ESTIMACION[[#This Row],[HORARIO EXTENDIDO]] -> 0
J102: =+IFERROR(VLOOKUP(ESTIMACION[[#This Row],[PERFIL]],$H$11:$J$16,3,FALSE),0) -> 0 | L102: =+ESTIMACION[[#This Row],[HORAS]]*ESTIMACION[[#This Row],[MULTP]]*ESTIMACION[[#This Row],[HORARIO EXTENDIDO]] -> 0
J103: =+IFERROR(VLOOKUP(ESTIMACION[[#This Row],[PERFIL]],$H$11:$J$16,3,FALSE),0) -> 0 | L103: =+ESTIMACION[[#This Row],[HORAS]]*ESTIMACION[[#This Row],[MULTP]]*ESTIMACION[[#This Row],[HORARIO EXTENDIDO]] -> 0
J104: =+IFERROR(VLOOKUP(ESTIMACION[[#This Row],[PERFIL]],$H$11:$J$16,3,FALSE),0) -> 0 | L104: =+ESTIMACION[[#This Row],[HORAS]]*ESTIMACION[[#This Row],[MULTP]]*ESTIMACION[[#This Row],[HORARIO EXTENDIDO]] -> 0
J105: =+IFERROR(VLOOKUP(ESTIMACION[[#This Row],[PERFIL]],$H$11:$J$16,3,FALSE),0) -> 0 | L105: =+ESTIMACION[[#This Row],[HORAS]]*ESTIMACION[[#This Row],[MULTP]]*ESTIMACION[[#This Row],[HORARIO EXTENDIDO]] -> 0
J106: =+IFERROR(VLOOKUP(ESTIMACION[[#This Row],[PERFIL]],$H$11:$J$16,3,FALSE),0) -> 0 | L106: =+ESTIMACION[[#This Row],[HORAS]]*ESTIMACION[[#This Row],[MULTP]]*ESTIMACION[[#This Row],[HORARIO EXTENDIDO]] -> 0
J107: =+IFERROR(VLOOKUP(ESTIMACION[[#This Row],[PERFIL]],$H$11:$J$16,3,FALSE),0) -> 0 | L107: =+ESTIMACION[[#This Row],[HORAS]]*ESTIMACION[[#This Row],[MULTP]]*ESTIMACION[[#This Row],[HORARIO EXTENDIDO]] -> 0
J108: =+IFERROR(VLOOKUP(ESTIMACION[[#This Row],[PERFIL]],$H$11:$J$16,3,FALSE),0) -> 0 | L108: =+ESTIMACION[[#This Row],[HORAS]]*ESTIMACION[[#This Row],[MULTP]]*ESTIMACION[[#This Row],[HORARIO EXTENDIDO]] -> 0
J109: =+IFERROR(VLOOKUP(ESTIMACION[[#This Row],[PERFIL]],$H$11:$J$16,3,FALSE),0) -> 0 | L109: =+ESTIMACION[[#This Row],[HORAS]]*ESTIMACION[[#This Row],[MULTP]]*ESTIMACION[[#This Row],[HORARIO EXTENDIDO]] -> 0
J110: =+IFERROR(VLOOKUP(ESTIMACION[[#This Row],[PERFIL]],$H$11:$J$16,3,FALSE),0) -> 0 | L110: =+ESTIMACION[[#This Row],[HORAS]]*ESTIMACION[[#This Row],[MULTP]]*ESTIMACION[[#This Row],[HORARIO EXTENDIDO]] -> 0
J111: =+IFERROR(VLOOKUP(ESTIMACION[[#This Row],[PERFIL]],$H$11:$J$16,3,FALSE),0) -> 0 | L111: =+ESTIMACION[[#This Row],[HORAS]]*ESTIMACION[[#This Row],[MULTP]]*ESTIMACION[[#This Row],[HORARIO EXTENDIDO]] -> 0
J112: =+IFERROR(VLOOKUP(ESTIMACION[[#This Row],[PERFIL]],$H$11:$J$16,3,FALSE),0) -> 0 | L112: =+ESTIMACION[[#This Row],[HORAS]]*ESTIMACION[[#This Row],[MULTP]]*ESTIMACION[[#This Row],[HORARIO EXTENDIDO]] -> 0
J113: =+IFERROR(VLOOKUP(ESTIMACION[[#This Row],[PERFIL]],$H$11:$J$16,3,FALSE),0) -> 0 | L113: =+ESTIMACION[[#This Row],[HORAS]]*ESTIMACION[[#This Row],[MULTP]]*ESTIMACION[[#This Row],[HORARIO EXTENDIDO]] -> 0
J114: =+IFERROR(VLOOKUP(ESTIMACION[[#This Row],[PERFIL]],$H$11:$J$16,3,FALSE),0) -> 0 | L114: =+ESTIMACION[[#This Row],[HORAS]]*ESTIMACION[[#This Row],[MULTP]]*ESTIMACION[[#This Row],[HORARIO EXTENDIDO]] -> 0
J115: =+IFERROR(VLOOKUP(ESTIMACION[[#This Row],[PERFIL]],$H$11:$J$16,3,FALSE),0) -> 0 | L115: =+ESTIMACION[[#This Row],[HORAS]]*ESTIMACION[[#This Row],[MULTP]]*ESTIMACION[[#This Row],[HORARIO EXTENDIDO]] -> 0
J116: =+IFERROR(VLOOKUP(ESTIMACION[[#This Row],[PERFIL]],$H$11:$J$16,3,FALSE),0) -> 0 | L116: =+ESTIMACION[[#This Row],[HORAS]]*ESTIMACION[[#This Row],[MULTP]]*ESTIMACION[[#This Row],[HORARIO EXTENDIDO]] -> 0
J117: =+IFERROR(VLOOKUP(ESTIMACION[[#This Row],[PERFIL]],$H$11:$J$16,3,FALSE),0) -> 0 | L117: =+ESTIMACION[[#This Row],[HORAS]]*ESTIMACION[[#This Row],[MULTP]]*ESTIMACION[[#This Row],[HORARIO EXTENDIDO]] -> 0
J118: =+IFERROR(VLOOKUP(ESTIMACION[[#This Row],[PERFIL]],$H$11:$J$16,3,FALSE),0) -> 0 | L118: =+ESTIMACION[[#This Row],[HORAS]]*ESTIMACION[[#This Row],[MULTP]]*ESTIMACION[[#This Row],[HORARIO EXTENDIDO]] -> 0
J119: =+IFERROR(VLOOKUP(ESTIMACION[[#This Row],[PERFIL]],$H$11:$J$16,3,FALSE),0) -> 0 | L119: =+ESTIMACION[[#This Row],[HORAS]]*ESTIMACION[[#This Row],[MULTP]]*ESTIMACION[[#This Row],[HORARIO EXTENDIDO]] -> 0
J120: =+IFERROR(VLOOKUP(ESTIMACION[[#This Row],[PERFIL]],$H$11:$J$16,3,FALSE),0) -> 0 | L120: =+ESTIMACION[[#This Row],[HORAS]]*ESTIMACION[[#This Row],[MULTP]]*ESTIMACION[[#This Row],[HORARIO EXTENDIDO]] -> 0
J121: =+IFERROR(VLOOKUP(ESTIMACION[[#This Row],[PERFIL]],$H$11:$J$16,3,FALSE),0) -> 0 | L121: =+ESTIMACION[[#This Row],[HORAS]]*ESTIMACION[[#This Row],[MULTP]]*ESTIMACION[[#This Row],[HORARIO EXTENDIDO]] -> 0
J122: =+IFERROR(VLOOKUP(ESTIMACION[[#This Row],[PERFIL]],$H$11:$J$16,3,FALSE),0) -> 0 | L122: =+ESTIMACION[[#This Row],[HORAS]]*ESTIMACION[[#This Row],[MULTP]]*ESTIMACION[[#This Row],[HORARIO EXTENDIDO]] -> 0
J123: =+IFERROR(VLOOKUP(ESTIMACION[[#This Row],[PERFIL]],$H$11:$J$16,3,FALSE),0) -> 0 | L123: =+ESTIMACION[[#This Row],[HORAS]]*ESTIMACION[[#This Row],[MULTP]]*ESTIMACION[[#This Row],[HORARIO EXTENDIDO]] -> 0
J124: =+IFERROR(VLOOKUP(ESTIMACION[[#This Row],[PERFIL]],$H$11:$J$16,3,FALSE),0) -> 0 | L124: =+ESTIMACION[[#This Row],[HORAS]]*ESTIMACION[[#This Row],[MULTP]]*ESTIMACION[[#This Row],[HORARIO EXTENDIDO]] -> 0
J125: =+IFERROR(VLOOKUP(ESTIMACION[[#This Row],[PERFIL]],$H$11:$J$16,3,FALSE),0) -> 0 | L125: =+ESTIMACION[[#This Row],[HORAS]]*ESTIMACION[[#This Row],[MULTP]]*ESTIMACION[[#This Row],[HORARIO EXTENDIDO]] -> 0
J126: =+IFERROR(VLOOKUP(ESTIMACION[[#This Row],[PERFIL]],$H$11:$J$16,3,FALSE),0) -> 0 | L126: =+ESTIMACION[[#This Row],[HORAS]]*ESTIMACION[[#This Row],[MULTP]]*ESTIMACION[[#This Row],[HORARIO EXTENDIDO]] -> 0
J127: =+IFERROR(VLOOKUP(ESTIMACION[[#This Row],[PERFIL]],$H$11:$J$16,3,FALSE),0) -> 0 | L127: =+ESTIMACION[[#This Row],[HORAS]]*ESTIMACION[[#This Row],[MULTP]]*ESTIMACION[[#This Row],[HORARIO EXTENDIDO]] -> 0
J128: =+IFERROR(VLOOKUP(ESTIMACION[[#This Row],[PERFIL]],$H$11:$J$16,3,FALSE),0) -> 0 | L128: =+ESTIMACION[[#This Row],[HORAS]]*ESTIMACION[[#This Row],[MULTP]]*ESTIMACION[[#This Row],[HORARIO EXTENDIDO]] -> 0
J129: =+IFERROR(VLOOKUP(ESTIMACION[[#This Row],[PERFIL]],$H$11:$J$16,3,FALSE),0) -> 0 | L129: =+ESTIMACION[[#This Row],[HORAS]]*ESTIMACION[[#This Row],[MULTP]]*ESTIMACION[[#This Row],[HORARIO EXTENDIDO]] -> 0
J130: =+IFERROR(VLOOKUP(ESTIMACION[[#This Row],[PERFIL]],$H$11:$J$16,3,FALSE),0) -> 0 | L130: =+ESTIMACION[[#This Row],[HORAS]]*ESTIMACION[[#This Row],[MULTP]]*ESTIMACION[[#This Row],[HORARIO EXTENDIDO]] -> 0
J131: =+IFERROR(VLOOKUP(ESTIMACION[[#This Row],[PERFIL]],$H$11:$J$16,3,FALSE),0) -> 0 | L131: =+ESTIMACION[[#This Row],[HORAS]]*ESTIMACION[[#This Row],[MULTP]]*ESTIMACION[[#This Row],[HORARIO EXTENDIDO]] -> 0
J132: =+IFERROR(VLOOKUP(ESTIMACION[[#This Row],[PERFIL]],$H$11:$J$16,3,FALSE),0) -> 0 | L132: =+ESTIMACION[[#This Row],[HORAS]]*ESTIMACION[[#This Row],[MULTP]]*ESTIMACION[[#This Row],[HORARIO EXTENDIDO]] -> 0
J133: =+IFERROR(VLOOKUP(ESTIMACION[[#This Row],[PERFIL]],$H$11:$J$16,3,FALSE),0) -> 0 | L133: =+ESTIMACION[[#This Row],[HORAS]]*ESTIMACION[[#This Row],[MULTP]]*ESTIMACION[[#This Row],[HORARIO EXTENDIDO]] -> 0
J134: =+IFERROR(VLOOKUP(ESTIMACION[[#This Row],[PERFIL]],$H$11:$J$16,3,FALSE),0) -> 0 | L134: =+ESTIMACION[[#This Row],[HORAS]]*ESTIMACION[[#This Row],[MULTP]]*ESTIMACION[[#This Row],[HORARIO EXTENDIDO]] -> 0
J135: =+IFERROR(VLOOKUP(ESTIMACION[[#This Row],[PERFIL]],$H$11:$J$16,3,FALSE),0) -> 0 | L135: =+ESTIMACION[[#This Row],[HORAS]]*ESTIMACION[[#This Row],[MULTP]]*ESTIMACION[[#This Row],[HORARIO EXTENDIDO]] -> 0
J136: =+IFERROR(VLOOKUP(ESTIMACION[[#This Row],[PERFIL]],$H$11:$J$16,3,FALSE),0) -> 0 | L136: =+ESTIMACION[[#This Row],[HORAS]]*ESTIMACION[[#This Row],[MULTP]]*ESTIMACION[[#This Row],[HORARIO EXTENDIDO]] -> 0
J137: =+IFERROR(VLOOKUP(ESTIMACION[[#This Row],[PERFIL]],$H$11:$J$16,3,FALSE),0) -> 0 | L137: =+ESTIMACION[[#This Row],[HORAS]]*ESTIMACION[[#This Row],[MULTP]]*ESTIMACION[[#This Row],[HORARIO EXTENDIDO]] -> 0
J138: =+IFERROR(VLOOKUP(ESTIMACION[[#This Row],[PERFIL]],$H$11:$J$16,3,FALSE),0) -> 0 | L138: =+ESTIMACION[[#This Row],[HORAS]]*ESTIMACION[[#This Row],[MULTP]]*ESTIMACION[[#This Row],[HORARIO EXTENDIDO]] -> 0
J139: =+IFERROR(VLOOKUP(ESTIMACION[[#This Row],[PERFIL]],$H$11:$J$16,3,FALSE),0) -> 0 | L139: =+ESTIMACION[[#This Row],[HORAS]]*ESTIMACION[[#This Row],[MULTP]]*ESTIMACION[[#This Row],[HORARIO EXTENDIDO]] -> 0
J140: =+IFERROR(VLOOKUP(ESTIMACION[[#This Row],[PERFIL]],$H$11:$J$16,3,FALSE),0) -> 0 | L140: =+ESTIMACION[[#This Row],[HORAS]]*ESTIMACION[[#This Row],[MULTP]]*ESTIMACION[[#This Row],[HORARIO EXTENDIDO]] -> 0
J141: =+IFERROR(VLOOKUP(ESTIMACION[[#This Row],[PERFIL]],$H$11:$J$16,3,FALSE),0) -> 0 | L141: =+ESTIMACION[[#This Row],[HORAS]]*ESTIMACION[[#This Row],[MULTP]]*ESTIMACION[[#This Row],[HORARIO EXTENDIDO]] -> 0
J142: =+IFERROR(VLOOKUP(ESTIMACION[[#This Row],[PERFIL]],$H$11:$J$16,3,FALSE),0) -> 0 | L142: =+ESTIMACION[[#This Row],[HORAS]]*ESTIMACION[[#This Row],[MULTP]]*ESTIMACION[[#This Row],[HORARIO EXTENDIDO]] -> 0
J143: =+IFERROR(VLOOKUP(ESTIMACION[[#This Row],[PERFIL]],$H$11:$J$16,3,FALSE),0) -> 0 | L143: =+ESTIMACION[[#This Row],[HORAS]]*ESTIMACION[[#This Row],[MULTP]]*ESTIMACION[[#This Row],[HORARIO EXTENDIDO]] -> 0
J144: =+IFERROR(VLOOKUP(ESTIMACION[[#This Row],[PERFIL]],$H$11:$J$16,3,FALSE),0) -> 0 | L144: =+ESTIMACION[[#This Row],[HORAS]]*ESTIMACION[[#This Row],[MULTP]]*ESTIMACION[[#This Row],[HORARIO EXTENDIDO]] -> 0
J145: =+IFERROR(VLOOKUP(ESTIMACION[[#This Row],[PERFIL]],$H$11:$J$16,3,FALSE),0) -> 0 | L145: =+ESTIMACION[[#This Row],[HORAS]]*ESTIMACION[[#This Row],[MULTP]]*ESTIMACION[[#This Row],[HORARIO EXTENDIDO]] -> 0
J146: =+IFERROR(VLOOKUP(ESTIMACION[[#This Row],[PERFIL]],$H$11:$J$16,3,FALSE),0) -> 0 | L146: =+ESTIMACION[[#This Row],[HORAS]]*ESTIMACION[[#This Row],[MULTP]]*ESTIMACION[[#This Row],[HORARIO EXTENDIDO]] -> 0
J147: =+IFERROR(VLOOKUP(ESTIMACION[[#This Row],[PERFIL]],$H$11:$J$16,3,FALSE),0) -> 0 | L147: =+ESTIMACION[[#This Row],[HORAS]]*ESTIMACION[[#This Row],[MULTP]]*ESTIMACION[[#This Row],[HORARIO EXTENDIDO]] -> 0
J148: =+IFERROR(VLOOKUP(ESTIMACION[[#This Row],[PERFIL]],$H$11:$J$16,3,FALSE),0) -> 0 | L148: =+ESTIMACION[[#This Row],[HORAS]]*ESTIMACION[[#This Row],[MULTP]]*ESTIMACION[[#This Row],[HORARIO EXTENDIDO]] -> 0
J149: =+IFERROR(VLOOKUP(ESTIMACION[[#This Row],[PERFIL]],$H$11:$J$16,3,FALSE),0) -> 0 | L149: =+ESTIMACION[[#This Row],[HORAS]]*ESTIMACION[[#This Row],[MULTP]]*ESTIMACION[[#This Row],[HORARIO EXTENDIDO]] -> 0
J150: =+IFERROR(VLOOKUP(ESTIMACION[[#This Row],[PERFIL]],$H$11:$J$16,3,FALSE),0) -> 0 | L150: =+ESTIMACION[[#This Row],[HORAS]]*ESTIMACION[[#This Row],[MULTP]]*ESTIMACION[[#This Row],[HORARIO EXTENDIDO]] -> 0
J151: =+IFERROR(VLOOKUP(ESTIMACION[[#This Row],[PERFIL]],$H$11:$J$16,3,FALSE),0) -> 0 | L151: =+ESTIMACION[[#This Row],[HORAS]]*ESTIMACION[[#This Row],[MULTP]]*ESTIMACION[[#This Row],[HORARIO EXTENDIDO]] -> 0
J152: =+IFERROR(VLOOKUP(ESTIMACION[[#This Row],[PERFIL]],$H$11:$J$16,3,FALSE),0) -> 0 | L152: =+ESTIMACION[[#This Row],[HORAS]]*ESTIMACION[[#This Row],[MULTP]]*ESTIMACION[[#This Row],[HORARIO EXTENDIDO]] -> 0
J153: =+IFERROR(VLOOKUP(ESTIMACION[[#This Row],[PERFIL]],$H$11:$J$16,3,FALSE),0) -> 0 | L153: =+ESTIMACION[[#This Row],[HORAS]]*ESTIMACION[[#This Row],[MULTP]]*ESTIMACION[[#This Row],[HORARIO EXTENDIDO]] -> 0
J154: =+IFERROR(VLOOKUP(ESTIMACION[[#This Row],[PERFIL]],$H$11:$J$16,3,FALSE),0) -> 0 | L154: =+ESTIMACION[[#This Row],[HORAS]]*ESTIMACION[[#This Row],[MULTP]]*ESTIMACION[[#This Row],[HORARIO EXTENDIDO]] -> 0
J155: =+IFERROR(VLOOKUP(ESTIMACION[[#This Row],[PERFIL]],$H$11:$J$16,3,FALSE),0) -> 0 | L155: =+ESTIMACION[[#This Row],[HORAS]]*ESTIMACION[[#This Row],[MULTP]]*ESTIMACION[[#This Row],[HORARIO EXTENDIDO]] -> 0
J156: =+IFERROR(VLOOKUP(ESTIMACION[[#This Row],[PERFIL]],$H$11:$J$16,3,FALSE),0) -> 0 | L156: =+ESTIMACION[[#This Row],[HORAS]]*ESTIMACION[[#This Row],[MULTP]]*ESTIMACION[[#This Row],[HORARIO EXTENDIDO]] -> 0
J157: =+IFERROR(VLOOKUP(ESTIMACION[[#This Row],[PERFIL]],$H$11:$J$16,3,FALSE),0) -> 0 | L157: =+ESTIMACION[[#This Row],[HORAS]]*ESTIMACION[[#This Row],[MULTP]]*ESTIMACION[[#This Row],[HORARIO EXTENDIDO]] -> 0
J158: =+IFERROR(VLOOKUP(ESTIMACION[[#This Row],[PERFIL]],$H$11:$J$16,3,FALSE),0) -> 0 | L158: =+ESTIMACION[[#This Row],[HORAS]]*ESTIMACION[[#This Row],[MULTP]]*ESTIMACION[[#This Row],[HORARIO EXTENDIDO]] -> 0
J159: =+IFERROR(VLOOKUP(ESTIMACION[[#This Row],[PERFIL]],$H$11:$J$16,3,FALSE),0) -> 0 | L159: =+ESTIMACION[[#This Row],[HORAS]]*ESTIMACION[[#This Row],[MULTP]]*ESTIMACION[[#This Row],[HORARIO EXTENDIDO]] -> 0
J160: =+IFERROR(VLOOKUP(ESTIMACION[[#This Row],[PERFIL]],$H$11:$J$16,3,FALSE),0) -> 0 | L160: =+ESTIMACION[[#This Row],[HORAS]]*ESTIMACION[[#This Row],[MULTP]]*ESTIMACION[[#This Row],[HORARIO EXTENDIDO]] -> 0
J161: =+IFERROR(VLOOKUP(ESTIMACION[[#This Row],[PERFIL]],$H$11:$J$16,3,FALSE),0) -> 0 | L161: =+ESTIMACION[[#This Row],[HORAS]]*ESTIMACION[[#This Row],[MULTP]]*ESTIMACION[[#This Row],[HORARIO EXTENDIDO]] -> 0
J162: =+IFERROR(VLOOKUP(ESTIMACION[[#This Row],[PERFIL]],$H$11:$J$16,3,FALSE),0) -> 0 | L162: =+ESTIMACION[[#This Row],[HORAS]]*ESTIMACION[[#This Row],[MULTP]]*ESTIMACION[[#This Row],[HORARIO EXTENDIDO]] -> 0
J163: =+IFERROR(VLOOKUP(ESTIMACION[[#This Row],[PERFIL]],$H$11:$J$16,3,FALSE),0) -> 0 | L163: =+ESTIMACION[[#This Row],[HORAS]]*ESTIMACION[[#This Row],[MULTP]]*ESTIMACION[[#This Row],[HORARIO EXTENDIDO]] -> 0
J164: =+IFERROR(VLOOKUP(ESTIMACION[[#This Row],[PERFIL]],$H$11:$J$16,3,FALSE),0) -> 0 | L164: =+ESTIMACION[[#This Row],[HORAS]]*ESTIMACION[[#This Row],[MULTP]]*ESTIMACION[[#This Row],[HORARIO EXTENDIDO]] -> 0
J165: =+IFERROR(VLOOKUP(ESTIMACION[[#This Row],[PERFIL]],$H$11:$J$16,3,FALSE),0) -> 0 | L165: =+ESTIMACION[[#This Row],[HORAS]]*ESTIMACION[[#This Row],[MULTP]]*ESTIMACION[[#This Row],[HORARIO EXTENDIDO]] -> 0
J166: =+IFERROR(VLOOKUP(ESTIMACION[[#This Row],[PERFIL]],$H$11:$J$16,3,FALSE),0) -> 0 | L166: =+ESTIMACION[[#This Row],[HORAS]]*ESTIMACION[[#This Row],[MULTP]]*ESTIMACION[[#This Row],[HORARIO EXTENDIDO]] -> 0
J167: =+IFERROR(VLOOKUP(ESTIMACION[[#This Row],[PERFIL]],$H$11:$J$16,3,FALSE),0) -> 0 | L167: =+ESTIMACION[[#This Row],[HORAS]]*ESTIMACION[[#This Row],[MULTP]]*ESTIMACION[[#This Row],[HORARIO EXTENDIDO]] -> 0
J168: =+IFERROR(VLOOKUP(ESTIMACION[[#This Row],[PERFIL]],$H$11:$J$16,3,FALSE),0) -> 0 | L168: =+ESTIMACION[[#This Row],[HORAS]]*ESTIMACION[[#This Row],[MULTP]]*ESTIMACION[[#This Row],[HORARIO EXTENDIDO]] -> 0
J169: =+IFERROR(VLOOKUP(ESTIMACION[[#This Row],[PERFIL]],$H$11:$J$16,3,FALSE),0) -> 0 | L169: =+ESTIMACION[[#This Row],[HORAS]]*ESTIMACION[[#This Row],[MULTP]]*ESTIMACION[[#This Row],[HORARIO EXTENDIDO]] -> 0
J170: =+IFERROR(VLOOKUP(ESTIMACION[[#This Row],[PERFIL]],$H$11:$J$16,3,FALSE),0) -> 0 | L170: =+ESTIMACION[[#This Row],[HORAS]]*ESTIMACION[[#This Row],[MULTP]]*ESTIMACION[[#This Row],[HORARIO EXTENDIDO]] -> 0
J171: =+IFERROR(VLOOKUP(ESTIMACION[[#This Row],[PERFIL]],$H$11:$J$16,3,FALSE),0) -> 0 | L171: =+ESTIMACION[[#This Row],[HORAS]]*ESTIMACION[[#This Row],[MULTP]]*ESTIMACION[[#This Row],[HORARIO EXTENDIDO]] -> 0
J172: =+IFERROR(VLOOKUP(ESTIMACION[[#This Row],[PERFIL]],$H$11:$J$16,3,FALSE),0) -> 0 | L172: =+ESTIMACION[[#This Row],[HORAS]]*ESTIMACION[[#This Row],[MULTP]]*ESTIMACION[[#This Row],[HORARIO EXTENDIDO]] -> 0
J173: =+IFERROR(VLOOKUP(ESTIMACION[[#This Row],[PERFIL]],$H$11:$J$16,3,FALSE),0) -> 0 | L173: =+ESTIMACION[[#This Row],[HORAS]]*ESTIMACION[[#This Row],[MULTP]]*ESTIMACION[[#This Row],[HORARIO EXTENDIDO]] -> 0
J174: =+IFERROR(VLOOKUP(ESTIMACION[[#This Row],[PERFIL]],$H$11:$J$16,3,FALSE),0) -> 0 | L174: =+ESTIMACION[[#This Row],[HORAS]]*ESTIMACION[[#This Row],[MULTP]]*ESTIMACION[[#This Row],[HORARIO EXTENDIDO]] -> 0
J175: =+IFERROR(VLOOKUP(ESTIMACION[[#This Row],[PERFIL]],$H$11:$J$16,3,FALSE),0) -> 0 | L175: =+ESTIMACION[[#This Row],[HORAS]]*ESTIMACION[[#This Row],[MULTP]]*ESTIMACION[[#This Row],[HORARIO EXTENDIDO]] -> 0
J176: =+IFERROR(VLOOKUP(ESTIMACION[[#This Row],[PERFIL]],$H$11:$J$16,3,FALSE),0) -> 0 | L176: =+ESTIMACION[[#This Row],[HORAS]]*ESTIMACION[[#This Row],[MULTP]]*ESTIMACION[[#This Row],[HORARIO EXTENDIDO]] -> 0
J177: =+IFERROR(VLOOKUP(ESTIMACION[[#This Row],[PERFIL]],$H$11:$J$16,3,FALSE),0) -> 0 | L177: =+ESTIMACION[[#This Row],[HORAS]]*ESTIMACION[[#This Row],[MULTP]]*ESTIMACION[[#This Row],[HORARIO EXTENDIDO]] -> 0
J178: =+IFERROR(VLOOKUP(ESTIMACION[[#This Row],[PERFIL]],$H$11:$J$16,3,FALSE),0) -> 0 | L178: =+ESTIMACION[[#This Row],[HORAS]]*ESTIMACION[[#This Row],[MULTP]]*ESTIMACION[[#This Row],[HORARIO EXTENDIDO]] -> 0
J179: =+IFERROR(VLOOKUP(ESTIMACION[[#This Row],[PERFIL]],$H$11:$J$16,3,FALSE),0) -> 0 | L179: =+ESTIMACION[[#This Row],[HORAS]]*ESTIMACION[[#This Row],[MULTP]]*ESTIMACION[[#This Row],[HORARIO EXTENDIDO]] -> 0
J180: =+IFERROR(VLOOKUP(ESTIMACION[[#This Row],[PERFIL]],$H$11:$J$16,3,FALSE),0) -> 0 | L180: =+ESTIMACION[[#This Row],[HORAS]]*ESTIMACION[[#This Row],[MULTP]]*ESTIMACION[[#This Row],[HORARIO EXTENDIDO]] -> 0
J181: =+IFERROR(VLOOKUP(ESTIMACION[[#This Row],[PERFIL]],$H$11:$J$16,3,FALSE),0) -> 0 | L181: =+ESTIMACION[[#This Row],[HORAS]]*ESTIMACION[[#This Row],[MULTP]]*ESTIMACION[[#This Row],[HORARIO EXTENDIDO]] -> 0
J182: =+IFERROR(VLOOKUP(ESTIMACION[[#This Row],[PERFIL]],$H$11:$J$16,3,FALSE),0) -> 0 | L182: =+ESTIMACION[[#This Row],[HORAS]]*ESTIMACION[[#This Row],[MULTP]]*ESTIMACION[[#This Row],[HORARIO EXTENDIDO]] -> 0
J183: =+IFERROR(VLOOKUP(ESTIMACION[[#This Row],[PERFIL]],$H$11:$J$16,3,FALSE),0) -> 0 | L183: =+ESTIMACION[[#This Row],[HORAS]]*ESTIMACION[[#This Row],[MULTP]]*ESTIMACION[[#This Row],[HORARIO EXTENDIDO]] -> 0
J184: =+IFERROR(VLOOKUP(ESTIMACION[[#This Row],[PERFIL]],$H$11:$J$16,3,FALSE),0) -> 0 | L184: =+ESTIMACION[[#This Row],[HORAS]]*ESTIMACION[[#This Row],[MULTP]]*ESTIMACION[[#This Row],[HORARIO EXTENDIDO]] -> 0
J185: =+IFERROR(VLOOKUP(ESTIMACION[[#This Row],[PERFIL]],$H$11:$J$16,3,FALSE),0) -> 0 | L185: =+ESTIMACION[[#This Row],[HORAS]]*ESTIMACION[[#This Row],[MULTP]]*ESTIMACION[[#This Row],[HORARIO EXTENDIDO]] -> 0
J186: =+IFERROR(VLOOKUP(ESTIMACION[[#This Row],[PERFIL]],$H$11:$J$16,3,FALSE),0) -> 0 | L186: =+ESTIMACION[[#This Row],[HORAS]]*ESTIMACION[[#This Row],[MULTP]]*ESTIMACION[[#This Row],[HORARIO EXTENDIDO]] -> 0
J187: =+IFERROR(VLOOKUP(ESTIMACION[[#This Row],[PERFIL]],$H$11:$J$16,3,FALSE),0) -> 0 | L187: =+ESTIMACION[[#This Row],[HORAS]]*ESTIMACION[[#This Row],[MULTP]]*ESTIMACION[[#This Row],[HORARIO EXTENDIDO]] -> 0
J188: =+IFERROR(VLOOKUP(ESTIMACION[[#This Row],[PERFIL]],$H$11:$J$16,3,FALSE),0) -> 0 | L188: =+ESTIMACION[[#This Row],[HORAS]]*ESTIMACION[[#This Row],[MULTP]]*ESTIMACION[[#This Row],[HORARIO EXTENDIDO]] -> 0
J189: =+IFERROR(VLOOKUP(ESTIMACION[[#This Row],[PERFIL]],$H$11:$J$16,3,FALSE),0) -> 0 | L189: =+ESTIMACION[[#This Row],[HORAS]]*ESTIMACION[[#This Row],[MULTP]]*ESTIMACION[[#This Row],[HORARIO EXTENDIDO]] -> 0
J190: =+IFERROR(VLOOKUP(ESTIMACION[[#This Row],[PERFIL]],$H$11:$J$16,3,FALSE),0) -> 0 | L190: =+ESTIMACION[[#This Row],[HORAS]]*ESTIMACION[[#This Row],[MULTP]]*ESTIMACION[[#This Row],[HORARIO EXTENDIDO]] -> 0
J191: =+IFERROR(VLOOKUP(ESTIMACION[[#This Row],[PERFIL]],$H$11:$J$16,3,FALSE),0) -> 0 | L191: =+ESTIMACION[[#This Row],[HORAS]]*ESTIMACION[[#This Row],[MULTP]]*ESTIMACION[[#This Row],[HORARIO EXTENDIDO]] -> 0
J192: =+IFERROR(VLOOKUP(ESTIMACION[[#This Row],[PERFIL]],$H$11:$J$16,3,FALSE),0) -> 0 | L192: =+ESTIMACION[[#This Row],[HORAS]]*ESTIMACION[[#This Row],[MULTP]]*ESTIMACION[[#This Row],[HORARIO EXTENDIDO]] -> 0
J193: =+IFERROR(VLOOKUP(ESTIMACION[[#This Row],[PERFIL]],$H$11:$J$16,3,FALSE),0) -> 0 | L193: =+ESTIMACION[[#This Row],[HORAS]]*ESTIMACION[[#This Row],[MULTP]]*ESTIMACION[[#This Row],[HORARIO EXTENDIDO]] -> 0
J194: =+IFERROR(VLOOKUP(ESTIMACION[[#This Row],[PERFIL]],$H$11:$J$16,3,FALSE),0) -> 0 | L194: =+ESTIMACION[[#This Row],[HORAS]]*ESTIMACION[[#This Row],[MULTP]]*ESTIMACION[[#This Row],[HORARIO EXTENDIDO]] -> 0
J195: =+IFERROR(VLOOKUP(ESTIMACION[[#This Row],[PERFIL]],$H$11:$J$16,3,FALSE),0) -> 0 | L195: =+ESTIMACION[[#This Row],[HORAS]]*ESTIMACION[[#This Row],[MULTP]]*ESTIMACION[[#This Row],[HORARIO EXTENDIDO]] -> 0
J196: =+IFERROR(VLOOKUP(ESTIMACION[[#This Row],[PERFIL]],$H$11:$J$16,3,FALSE),0) -> 0 | L196: =+ESTIMACION[[#This Row],[HORAS]]*ESTIMACION[[#This Row],[MULTP]]*ESTIMACION[[#This Row],[HORARIO EXTENDIDO]] -> 0
J197: =+IFERROR(VLOOKUP(ESTIMACION[[#This Row],[PERFIL]],$H$11:$J$16,3,FALSE),0) -> 0 | L197: =+ESTIMACION[[#This Row],[HORAS]]*ESTIMACION[[#This Row],[MULTP]]*ESTIMACION[[#This Row],[HORARIO EXTENDIDO]] -> 0
J198: =+IFERROR(VLOOKUP(ESTIMACION[[#This Row],[PERFIL]],$H$11:$J$16,3,FALSE),0) -> 0 | L198: =+ESTIMACION[[#This Row],[HORAS]]*ESTIMACION[[#This Row],[MULTP]]*ESTIMACION[[#This Row],[HORARIO EXTENDIDO]] -> 0
J199: =+IFERROR(VLOOKUP(ESTIMACION[[#This Row],[PERFIL]],$H$11:$J$16,3,FALSE),0) -> 0 | L199: =+ESTIMACION[[#This Row],[HORAS]]*ESTIMACION[[#This Row],[MULTP]]*ESTIMACION[[#This Row],[HORARIO EXTENDIDO]] -> 0
J200: =+IFERROR(VLOOKUP(ESTIMACION[[#This Row],[PERFIL]],$H$11:$J$16,3,FALSE),0) -> 0 | L200: =+ESTIMACION[[#This Row],[HORAS]]*ESTIMACION[[#This Row],[MULTP]]*ESTIMACION[[#This Row],[HORARIO EXTENDIDO]] -> 0
J201: =+IFERROR(VLOOKUP(ESTIMACION[[#This Row],[PERFIL]],$H$11:$J$16,3,FALSE),0) -> 0 | L201: =+ESTIMACION[[#This Row],[HORAS]]*ESTIMACION[[#This Row],[MULTP]]*ESTIMACION[[#This Row],[HORARIO EXTENDIDO]] -> 0

Sheet REAL
Q2: SVT
M3: Incurrido de la Orden de Trabajo | Q3: OTEVS
Q4: OTR
E5: REAL | L5: TIPO DE OT | M5: OTAD | Q5: OTInm
L6: Incurrido de la OT (HBS): | M6: =K17 -> 425.4375 | Q6: OTEquipo
B7: Fecha de inicio: | C7: 2021-11-15 | Q7: PST
B8: Fecha de entrega: | C8: 2021-12-10 | L8: REF JIRA | M8: APLICATIVO_1-2345 | Q8: OTA
Q9: OTD
B10: ENTREGABLES | I10: HORAS | J10: MULTP | K10: HBS | Q10: OTC
B11: PAQUETE DE CÓDIGO (SVN) | H11: CO | I11: =SUMIF(REAL[PERFIL],H11,REAL[HORAS]) -> 123 | J11: 2 | K11: =SUMIF(REAL[PERFIL],H11,REAL[HBS]) -> 246 | Q11: OTAD
B12: PLAN DE PRUEBAS FUNCIONALES DETALLADO (PPF) | H12: AF | I12: =SUMIF(REAL[PERFIL],H12,REAL[HORAS]) -> 68.25 | J12: 1.75 | K12: =SUMIF(REAL[PERFIL],H12,REAL[HBS]) -> 119.4375 | Q12: OTADC
B13: GUÍA DE MIGRACIÓN | H13: AP | I13: =SUMIF(REAL[PERFIL],H13,REAL[HORAS]) -> 0 | J13: 1.5 | K13: =SUMIF(REAL[PERFIL],H13,REAL[HBS]) -> 0 | Q13: OTImpl
B14: GUÍA DE PARAMETRIZACIÓN | H14: PR | I14: =SUMIF(REAL[PERFIL],H14,REAL[HORAS]) -> 36 | J14: 1.25 | K14: =SUMIF(REAL[PERFIL],H14,REAL[HBS]) -> 45 | Q14: OTAgil
B15: DEFINICIÓN DEL ALCANCE DE LA MIGRACIÓN | H15: PJ | I15: =SUMIF(REAL[PERFIL],H15,REAL[HORAS]) -> 15 | J15: 1 | K15: =SUMIF(REAL[PERFIL],H15,REAL[HBS]) -> 15
B16: REGISTRO DE EJECUCIÓN DEL PPF | H16: H.EXTENDIDO | J16: 1.5 | Q16: PRODUCCION
B17: HERRAMIENTA DE MIGRACIÓN | H17: TOTAL OT | I17: =SUM(I11:I15) -> 242.25 | K17: =SUM(K11:K15) -> 425.4375 | Q17: GESTION
B18: MANUAL DE USUARIO | Q18: REUNION
B19: CONSTRUCCIÓN DE FUNCIONALIDADES/COMPONENTES | I19: HORAS | J19: HBS
B20: PRUEBAS | H20: PRODUCCION | I20: =SUMIF(REAL[TIPO DE ACTIVIDAD],H20,REAL[HORAS]) -> 116.75 | J20: =SUMIF(REAL[TIPO DE ACTIVIDAD],H20,REAL[HBS]) -> 184.8125
B21: VALIDACIÓN DEL ALCANCE | H21: GESTION | I21: =SUMIF(REAL[TIPO DE ACTIVIDAD],H21,REAL[HORAS]) -> 18.5 | J21: =SUMIF(REAL[TIPO DE ACTIVIDAD],H21,REAL[HBS]) -> 28.375
B22: OTRAS ACTIVIDADES DE CONSTRUCCIÓN Y PRUEBAS | H22: REUNION | I22: =SUMIF(REAL[TIPO DE ACTIVIDAD],H22,REAL[HORAS]) -> 107 | J22: =SUMIF(REAL[TIPO DE ACTIVIDAD],H22,REAL[HBS]) -> 212.25
I24: =SUM(REAL[HORAS]) -> 242.25 | L24: =SUM(REAL[HBS]) -> 425.4375
B25: USUARIO | C25: FECHA | D25: TAREA | E25: FASE PROYECTO / COD. JIRA | F25: COMPONENTE VERSION | G25: TIPO DE ACTIVIDAD | H25: PERFIL | I25: HORAS | J25: MULTP | K25: HORARIO EXTENDIDO | L25: HBS | M25: COMENTARIOS
B26: Analista Funcional 2 | C26: 02/11/2021 | D26: v3.1 Análisis y validación funcional en desa | E26: MEJORA-1235 | F26: APLICATIVO_1 3.1 | G26: PRODUCCION | H26: AF | I26: 5 | J26: =+IFERROR(VLOOKUP(REAL[[#This Row],[PERFIL]],$H$11:$J$16,3,FALSE),0) -> 1.75 | K26: 1 | L26: 8.75 | M26: - Lectura y análisis de la documentación para la versión 3.1. - Reunión funcional para resolución de dudas sobre la versión 3.1 y explicación sobre el circuito funcional. - Lectura de correos sobre la información de la versión.
B27: Analista Funcional 1 | C27: 02/11/2021 | D27: CS- análisis 3.1 | E27: MEJORA-1235 | F27: APLICATIVO_1 3.1 | G27: REUNION | H27: AF | I27: 2.5 | J27: =+IFERROR(VLOOKUP(REAL[[#This Row],[PERFIL]],$H$11:$J$16,3,FALSE),0) -> 1.75 | K27: NO | L27: 4.375 | M27: Revisión doc . Explicación a otra funcional
B28: Analista Funcional 2 | C28: 03/11/2021 | D28: v3.1 Análisis y validación funcional en desa | E28: MEJORA-1235 | F28: CLICSALUD 3.1 | G28: GESTION | H28: AF | I28: 7 | J28: =+IFERROR(VLOOKUP(REAL[[#This Row],[PERFIL]],$H$11:$J$16,3,FALSE),0) -> 1.75 | K28: NO | L28: 12.25 | M28: - Repaso de la documentación para la versión 3.1. - Lectura de correos sobre la información de la versión. - Creación del Team Review de la versión 3.1. - Creación de la carpeta de objetivos, objetivos de la versión y diagrama correspondiente.
B29: Programador 1 | C29: 03/11/2021 | D29: ClicSalud 3.1 - Mejoras EIDAS | E29: INCIDENCIA-1125 | F29: CLICSALUD 3.1 | G29: PRODUCCION | H29: PR | I29: 8 | J29: =+IFERROR(VLOOKUP(REAL[[#This Row],[PERFIL]],$H$11:$J$16,3,FALSE),0) -> 1.25 | K29: NO | L29: 10 | M29: Mejoras EIDAS Control correo y campo PersonalIdentifier
B30: Programador 1 | C30: 04/11/2021 | D30: ClicSalud 3.1 - Mejoras EIDAS | E30: INCIDENCIA-1125 | F30: CLICSALUD 3.1 | G30: GESTION | H30: PR | I30: 8 | J30: =+IFERROR(VLOOKUP(REAL[[#This Row],[PERFIL]],$H$11:$J$16,3,FALSE),0) -> 1.25 | K30: NO | L30: 10 | M30: Mejoras EIDAS Combo tipos Documentos
B31: Analista Funcional 2 | C31: 04/11/2021 | D31: v3.1 Análisis y validación funcional en desa | E31: INCIDENCIA-1125 | F31: CLICSALUD 3.1 | G31: PRODUCCION | H31: AF | I31: 3.25 | J31: =+IFERROR(VLOOKUP(REAL[[#This Row],[PERFIL]],$H$11:$J$16,3,FALSE),0) -> 1.75 | K31: NO | L31: 5.6875 | M31: - Revisión y validación del acceso con clave a CS+ en el entorno de PRE, e informarlo al equipo funcional del resultado. - Lectura de hilos de correos sobre el desarrollo de la versión.
B32: Programador Junior 2 | C32: 05/11/2021 | D32: ClicSalud 3.1 - Mejoras EIDAS | E32: MEJORA-1426 | F32: CLICSALUD 3.1 | G32: PRODUCCION | H32: PJ | I32: 3 | J32: =+IFERROR(VLOOKUP(REAL[[#This Row],[PERFIL]],$H$11:$J$16,3,FALSE),0) -> 1 | K32: NO | L32: 3 | M32: pruebas cambios eidas
B33: Analista Funcional 2 | C33: 05/11/2021 | D33: v3.1 Análisis y validación funcional en desa | E33: MEJORA-1426 | F33: CLICSALUD 3.1 | G33: GESTION | H33: AF | I33: 3.5 | J33: =+IFERROR(VLOOKUP(REAL[[#This Row],[PERFIL]],$H$11:$J$16,3,FALSE),0) -> 1.75 | K33: NO | L33: 6.125 | M33: - Comunicación con el equipo funcional para organizar la validación de la versión en el entorno de desarrollo y puesta al día del análisis del EA v3.1. - Lectura de hilos de correos sobre el desarrollo de la versión de cara a la validación en desarrollo. - Validación funcional en el entorno de desarrollo de la versión 3.1 y resolución de dudas con el equipo de desarrollo.
B34: Analista Funcional 1 | C34: 05/11/2021 | D34: CS- análisis 3.1 | E34: INCIDENCIA-1125 | F34: CLICSALUD 3.1 | G34: PRODUCCION | H34: AF | I34: 4.5 | J34: =+IFERROR(VLOOKUP(REAL[[#This Row],[PERFIL]],$H$11:$J$16,3,FALSE),0) -> 1.75 | K34: NO | L34: 7.875 | M34: Validación EIDAS
B35: Programador 1 | C35: 08/11/2021 | D35: ClicSalud 3.1 - Mejoras EIDAS | E35: INCIDENCIA-1125 | F35: CLICSALUD 3.1 | G35: PRODUCCION | H35: PR | I35: 5 | J35: =+IFERROR(VLOOKUP(REAL[[#This Row],[PERFIL]],$H$11:$J$16,3,FALSE),0) -> 1.25 | K35: NO | L35: 6.25 | M35: cambios errores eidas develop
B36: Analista Funcional 2 | C36: 08/11/2021 | D36: v3.1 Análisis y validación funcional en desa | E36: MEJORA-1235 | F36: CLICSALUD 3.1 | G36: REUNION | H36: AF | I36: 4.5 | J36: =+IFERROR(VLOOKUP(REAL[[#This Row],[PERFIL]],$H$11:$J$16,3,FALSE),0) -> 1.75 | K36: NO | L36: 7.875 | M36: Reunión funcional sobre la validación de la versión v3.1 de CS+.
B37: Analista Funcional 1 | C37: 08/11/2021 | D37: CS- análisis 3.2.1 | E37: INCI3ENCIALU-1125 | F37: CLICSALUD 3.2.1 | G37: PRODUCCION | H37: AF | I37: 2.5 | J37: =+IFERROR(VLOOKUP(REAL[[#This Row],[PERFIL]],$H$11:$J$16,3,FALSE),0) -> 1.75 | K37: NO | L37: 4.375 | M37: Analysis
B38: Analista Funcional 2 | C38: 09/11/2021 | D38: v3.2.1 Análisis y validación funcional en desa | E38: INCI3ENCIALU-1125 | F38: CLICSALUD 3.2.1 | G38: PRODUCCION | H38: AF | I38: 6.5 | J38: =+IFERROR(VLOOKUP(REAL[[#This Row],[PERFIL]],$H$11:$J$16,3,FALSE),0) -> 1.75 | K38: NO | L38: 11.375 | M38: - Creación de casos de prueba, objetivos y requisitos de la versión 3.1. - resolución de dudas funcionales.
B39: Programador Junior 2 | C39: 09/11/2021 | D39: CS 3.2.1 - Cambios en EIDAS | E39: MEJORA-2426 | F39: CLICSALUD 3.2.1 | G39: PRODUCCION | H39: PJ | I39: 9 | J39: =+IFERROR(VLOOKUP(REAL[[#This Row],[PERFIL]],$H$11:$J$16,3,FALSE),0) -> 1 | K39: NO | L39: 9 | M39: Construction and Unit Tests
B40: Analista Funcional 2 | C40: 10/11/2021 | D40: v3.2.1 Análisis y validación funcional en desa | E40: MEJORALU-1426 | F40: CLICSALUD 3.2.1 | G40: PRODUCCION | H40: AF | I40: 9 | J40: =+IFERROR(VLOOKUP(REAL[[#This Row],[PERFIL]],$H$11:$J$16,3,FALSE),0) -> 1.75 | K40: NO | L40: 15.75 | M40: - Validación funcional v3.1 en el entorno de desarrollo y comunicación de incidencias por correo al equipo de desarrollo. - Se actualizan requisitos funcionales, requisitos de integración, Interfaz, caso de uso, casos de prueba y diagramas correspondientes en el EA v.3.1.
B41: Programador 1 | C41: 10/11/2021 | D41: ClicSalud 3.2.1 - Mejoras EIDAS | E41: INCI3ENCIALU-1125 | F41: CLICSALUD 3.2.1 | G41: PRODUCCION | H41: PR | I41: 3 | J41: =+IFERROR(VLOOKUP(REAL[[#This Row],[PERFIL]],$H$11:$J$16,3,FALSE),0) -> 1.25 | K41: NO | L41: 3.75 | M41: problemas Clave en PRE, preparación envio versión cambios EIDAS
B42: Equipo Calidad | C42: 10/11/2021 | D42: CLICSALUD v3.1.0.1 Instalaciones en Calidad y entrega a Cliente | E42: MEJORALU-1426 | F42: CLICSALUD 3.1 | G42: PRODUCCION | H42: CO | I42: 5 | J42: =+IFERROR(VLOOKUP(REAL[[#This Row],[PERFIL]],$H$11:$J$16,3,FALSE),0) -> 2 | K42: NO | L42: 10 | M42: Instalaciones y revisiones en Entorno de Calidad.
B43: Equipo Desarrollo 2 | C43: 10/11/2021 | D43: CS 3.1 - Cambios en EIDAS | E43: INCIDENCIA-1125 | F43: CLICSALUD 3.1 | G43: PRODUCCION | H43: PR | I43: 9 | J43: =+IFERROR(VLOOKUP(REAL[[#This Row],[PERFIL]],$H$11:$J$16,3,FALSE),0) -> 1.25 | K43: NO | L43: 11.25 | M43: Construction and Unit Tests
B44: Jefe de Proyecto | C44: 10/11/2021 | D44: Gestión | E44: MEJORALU-1426 | F44: CLICSALUD 3.1 | G44: PRODUCCION | H44: CO | I44: 9 | J44: =+IFERROR(VLOOKUP(REAL[[#This Row],[PERFIL]],$H$11:$J$16,3,FALSE),0) -> 2 | K44: NO | L44: 18 | M44: Management
B45: Analista Funcional 2 | C45: 11/11/2021 | D45: Validación funcional CS+ v3.1 PRE | E45: INCIDENCIA-1125 | F45: CLICSALUD 3.1 | G45: PRODUCCION | H45: AF | I45: 3.5 | J45: =+IFERROR(VLOOKUP(REAL[[#This Row],[PERFIL]],$H$11:$J$16,3,FALSE),0) -> 1.75 | K45: NO | L45: 6.125 | M45: - Validación funcional de la instalación de CS v3.1 en entorno de PRE. - Revisión de las no conformidades detectadas con el equipo de desarrollo.
B46: Analista Funcional 2 | C46: 11/11/2021 | D46: v3.1 Análisis y validación funcional en desa | E46: MEJORA-1235 | F46: CLICSALUD 3.1 | G46: PRODUCCION | H46: AF | I46: 5 | J46: =+IFERROR(VLOOKUP(REAL[[#This Row],[PERFIL]],$H$11:$J$16,3,FALSE),0) -> 1.75 | K46: NO | L46: 8.75 | M46: creación casos de prueba de la versión 3.1 en el EA y esquema de las posibles casuísticas. revisión de la documentación de análisis de eIDAS y correos de la versión.
B47: Equipo Desarrollo 2 | C47: 11/11/2021 | D47: v3.1 Cambios EIDAS Implantación PRO | E47: INCIDENCIA-1125 | F47: CLICSALUD 3.1 | G47: PRODUCCION | H47: PR | I47: 3 | J47: =+IFERROR(VLOOKUP(REAL[[#This Row],[PERFIL]],$H$11:$J$16,3,FALSE),0) -> 1.25 | K47: NO | L47: 3.75 | M47: Puesta en producción
B48: Jefe de Proyecto | C48: 11/11/2021 | D48: Gestión | E48: MEJORA-2426 | F48: CLICSALUD 3.1 | G48: PRODUCCION | H48: CO | I48: 9 | J48: =+IFERROR(VLOOKUP(REAL[[#This Row],[PERFIL]],$H$11:$J$16,3,FALSE),0) -> 2 | K48: NO | L48: 18 | M48: Management
B49: Analista Funcional 2 | C49: 12/11/2021 | D49: v3.1 Análisis y validación funcional en desa | E49: INCIDENCIA-1125 | F49: CLICSALUD 3.1 | G49: PRODUCCION | H49: AF | I49: 4.5 | J49: =+IFERROR(VLOOKUP(REAL[[#This Row],[PERFIL]],$H$11:$J$16,3,FALSE),0) -> 1.75 | K49: NO | L49: 7.875 | M49: modificación de caso de prueba de versión anterior para adaptarlo a la versión actual y añadir casuísticas que incluye la versión.
B50: Analista Funcional 2 | C50: 15/11/2021 | D50: v3.1 Análisis y validación funcional en desa | E50: INCIDENCIA-1125 | F50: CLICSALUD 3.1 | G50: PRODUCCION | H50: AF | I50: 3 | J50: =+IFERROR(VLOOKUP(REAL[[#This Row],[PERFIL]],$H$11:$J$16,3,FALSE),0) -> 1.75 | K50: NO | L50: 5.25 | M50: - revisión del EA v3.1 - reunión equipo funcional para revisar EA v3.1 y resolución de dudas.
B51: Analista Funcional 1 | C51: 15/11/2021 | D51: CS- análisis 3.1 | E51: MEJORA-1235 | F51: CLICSALUD 3.1 | G51: PRODUCCION | H51: AF | I51: 4 | J51: =+IFERROR(VLOOKUP(REAL[[#This Row],[PERFIL]],$H$11:$J$16,3,FALSE),0) -> 1.75 | K51: NO | L51: 7 | M51: revisión EA e incluisón de relaciones , refinamiento casos de prueba . Creación baseline
B52: Analista Funcional 2 | C52: 16/11/2021 | D52: v3.1 Análisis y validación funcional en desa | E52: MEJORA-1235 | F52: CLICSALUD 3.1 | G52: PRODUCCION | H52: PJ | I52: 3 | J52: =+IFERROR(VLOOKUP(REAL[[#This Row],[PERFIL]],$H$11:$J$16,3,FALSE),0) -> 1 | K52: NO | L52: 3 | M52: - Revisión del EA v3.1 - reunión equipo funcional para revisar EA v3.1 y resolución de dudas. - Generación del EA y PPF v3.1. - envío de correo de la documentación generada. - subida de la documentación a los repositorios documentales: GDOP y Confluence.
C53: 2021-11-17 | D53: v3.2 Análisis y validación funcional en desa | E53: MEJORA-2426 | F53: CLICSALUD 4.0 | G53: REUNION | H53: CO | I53: 100 | J53: =+IFERROR(VLOOKUP(REAL[[#This Row],[PERFIL]],$H$11:$J$16,3,FALSE),0) -> 2 | K53: NO | L53: 200
J54: =+IFERROR(VLOOKUP(REAL[[#This Row],[PERFIL]],$H$11:$J$16,3,FALSE),0) -> 0 | L54: =+REAL[[#This Row],[HORAS]]*REAL[[#This Row],[MULTP]]*REAL[[#This Row],[HORARIO EXTENDIDO]] -> 0
J55: =+IFERROR(VLOOKUP(REAL[[#This Row],[PERFIL]],$H$11:$J$16,3,FALSE),0) -> 0 | L55: =+REAL[[#This Row],[HORAS]]*REAL[[#This Row],[MULTP]]*REAL[[#This Row],[HORARIO EXTENDIDO]] -> 0
J56: =+IFERROR(VLOOKUP(REAL[[#This Row],[PERFIL]],$H$11:$J$16,3,FALSE),0) -> 0 | L56: =+REAL[[#This Row],[HORAS]]*REAL[[#This Row],[MULTP]]*REAL[[#This Row],[HORARIO EXTENDIDO]] -> 0
J57: =+IFERROR(VLOOKUP(REAL[[#This Row],[PERFIL]],$H$11:$J$16,3,FALSE),0) -> 0 | L57: =+REAL[[#This Row],[HORAS]]*REAL[[#This Row],[MULTP]]*REAL[[#This Row],[HORARIO EXTENDIDO]] -> 0
J58: =+IFERROR(VLOOKUP(REAL[[#This Row],[PERFIL]],$H$11:$J$16,3,FALSE),0) -> 0 | L58: =+REAL[[#This Row],[HORAS]]*REAL[[#This Row],[MULTP]]*REAL[[#This Row],[HORARIO EXTENDIDO]] -> 0
J59: =+IFERROR(VLOOKUP(REAL[[#This Row],[PERFIL]],$H$11:$J$16,3,FALSE),0) -> 0 | L59: =+REAL[[#This Row],[HORAS]]*REAL[[#This Row],[MULTP]]*REAL[[#This Row],[HORARIO EXTENDIDO]] -> 0
J60: =+IFERROR(VLOOKUP(REAL[[#This Row],[PERFIL]],$H$11:$J$16,3,FALSE),0) -> 0 | L60: =+REAL[[#This Row],[HORAS]]*REAL[[#This Row],[MULTP]]*REAL[[#This Row],[HORARIO EXTENDIDO]] -> 0
J61: =+IFERROR(VLOOKUP(REAL[[#This Row],[PERFIL]],$H$11:$J$16,3,FALSE),0) -> 0 | L61: =+REAL[[#This Row],[HORAS]]*REAL[[#This Row],[MULTP]]*REAL[[#This Row],[HORARIO EXTENDIDO]] -> 0
J62: =+IFERROR(VLOOKUP(REAL[[#This Row],[PERFIL]],$H$11:$J$16,3,FALSE),0) -> 0 | L62: =+REAL[[#This Row],[HORAS]]*REAL[[#This Row],[MULTP]]*REAL[[#This Row],[HORARIO EXTENDIDO]] -> 0
J63: =+IFERROR(VLOOKUP(REAL[[#This Row],[PERFIL]],$H$11:$J$16,3,FALSE),0) -> 0 | L63: =+REAL[[#This Row],[HORAS]]*REAL[[#This Row],[MULTP]]*REAL[[#This Row],[HORARIO EXTENDIDO]] -> 0
J64: =+IFERROR(VLOOKUP(REAL[[#This Row],[PERFIL]],$H$11:$J$16,3,FALSE),0) -> 0 | L64: =+REAL[[#This Row],[HORAS]]*REAL[[#This Row],[MULTP]]*REAL[[#This Row],[HORARIO EXTENDIDO]] -> 0
J65: =+IFERROR(VLOOKUP(REAL[[#This Row],[PERFIL]],$H$11:$J$16,3,FALSE),0) -> 0 | L65: =+REAL[[#This Row],[HORAS]]*REAL[[#This Row],[MULTP]]*REAL[[#This Row],[HORARIO EXTENDIDO]] -> 0
J66: =+IFERROR(VLOOKUP(REAL[[#This Row],[PERFIL]],$H$11:$J$16,3,FALSE),0) -> 0 | L66: =+REAL[[#This Row],[HORAS]]*REAL[[#This Row],[MULTP]]*REAL[[#This Row],[HORARIO EXTENDIDO]] -> 0
J67: =+IFERROR(VLOOKUP(REAL[[#This Row],[PERFIL]],$H$11:$J$16,3,FALSE),0) -> 0 | L67: =+REAL[[#This Row],[HORAS]]*REAL[[#This Row],[MULTP]]*REAL[[#This Row],[HORARIO EXTENDIDO]] -> 0
J68: =+IFERROR(VLOOKUP(REAL[[#This Row],[PERFIL]],$H$11:$J$16,3,FALSE),0) -> 0 | L68: =+REAL[[#This Row],[HORAS]]*REAL[[#This Row],[MULTP]]*REAL[[#This Row],[HORARIO EXTENDIDO]] -> 0
J69: =+IFERROR(VLOOKUP(REAL[[#This Row],[PERFIL]],$H$11:$J$16,3,FALSE),0) -> 0 | L69: =+REAL[[#This Row],[HORAS]]*REAL[[#This Row],[MULTP]]*REAL[[#This Row],[HORARIO EXTENDIDO]] -> 0
J70: =+IFERROR(VLOOKUP(REAL[[#This Row],[PERFIL]],$H$11:$J$16,3,FALSE),0) -> 0 | L70: =+REAL[[#This Row],[HORAS]]*REAL[[#This Row],[MULTP]]*REAL[[#This Row],[HORARIO EXTENDIDO]] -> 0
J71: =+IFERROR(VLOOKUP(REAL[[#This Row],[PERFIL]],$H$11:$J$16,3,FALSE),0) -> 0 | L71: =+REAL[[#This Row],[HORAS]]*REAL[[#This Row],[MULTP]]*REAL[[#This Row],[HORARIO EXTENDIDO]] -> 0
J72: =+IFERROR(VLOOKUP(REAL[[#This Row],[PERFIL]],$H$11:$J$16,3,FALSE),0) -> 0 | L72: =+REAL[[#This Row],[HORAS]]*REAL[[#This Row],[MULTP]]*REAL[[#This Row],[HORARIO EXTENDIDO]] -> 0
J73: =+IFERROR(VLOOKUP(REAL[[#This Row],[PERFIL]],$H$11:$J$16,3,FALSE),0) -> 0 | L73: =+REAL[[#This Row],[HORAS]]*REAL[[#This Row],[MULTP]]*REAL[[#This Row],[HORARIO EXTENDIDO]] -> 0
J74: =+IFERROR(VLOOKUP(REAL[[#This Row],[PERFIL]],$H$11:$J$16,3,FALSE),0) -> 0 | L74: =+REAL[[#This Row],[HORAS]]*REAL[[#This Row],[MULTP]]*REAL[[#This Row],[HORARIO EXTENDIDO]] -> 0
J75: =+IFERROR(VLOOKUP(REAL[[#This Row],[PERFIL]],$H$11:$J$16,3,FALSE),0) -> 0 | L75: =+REAL[[#This Row],[HORAS]]*REAL[[#This Row],[MULTP]]*REAL[[#This Row],[HORARIO EXTENDIDO]] -> 0
J76: =+IFERROR(VLOOKUP(REAL[[#This Row],[PERFIL]],$H$11:$J$16,3,FALSE),0) -> 0 | L76: =+REAL[[#This Row],[HORAS]]*REAL[[#This Row],[MULTP]]*REAL[[#This Row],[HORARIO EXTENDIDO]] -> 0
J77: =+IFERROR(VLOOKUP(REAL[[#This Row],[PERFIL]],$H$11:$J$16,3,FALSE),0) -> 0 | L77: =+REAL[[#This Row],[HORAS]]*REAL[[#This Row],[MULTP]]*REAL[[#This Row],[HORARIO EXTENDIDO]] -> 0
J78: =+IFERROR(VLOOKUP(REAL[[#This Row],[PERFIL]],$H$11:$J$16,3,FALSE),0) -> 0 | L78: =+REAL[[#This Row],[HORAS]]*REAL[[#This Row],[MULTP]]*REAL[[#This Row],[HORARIO EXTENDIDO]] -> 0
J79: =+IFERROR(VLOOKUP(REAL[[#This Row],[PERFIL]],$H$11:$J$16,3,FALSE),0) -> 0 | L79: =+REAL[[#This Row],[HORAS]]*REAL[[#This Row],[MULTP]]*REAL[[#This Row],[HORARIO EXTENDIDO]] -> 0
J80: =+IFERROR(VLOOKUP(REAL[[#This Row],[PERFIL]],$H$11:$J$16,3,FALSE),0) -> 0 | L80: =+REAL[[#This Row],[HORAS]]*REAL[[#This Row],[MULTP]]*REAL[[#This Row],[HORARIO EXTENDIDO]] -> 0
J81: =+IFERROR(VLOOKUP(REAL[[#This Row],[PERFIL]],$H$11:$J$16,3,FALSE),0) -> 0 | L81: =+REAL[[#This Row],[HORAS]]*REAL[[#This Row],[MULTP]]*REAL[[#This Row],[HORARIO EXTENDIDO]] -> 0
J82: =+IFERROR(VLOOKUP(REAL[[#This Row],[PERFIL]],$H$11:$J$16,3,FALSE),0) -> 0 | L82: =+REAL[[#This Row],[HORAS]]*REAL[[#This Row],[MULTP]]*REAL[[#This Row],[HORARIO EXTENDIDO]] -> 0
J83: =+IFERROR(VLOOKUP(REAL[[#This Row],[PERFIL]],$H$11:$J$16,3,FALSE),0) -> 0 | L83: =+REAL[[#This Row],[HORAS]]*REAL[[#This Row],[MULTP]]*REAL[[#This Row],[HORARIO EXTENDIDO]] -> 0
J84: =+IFERROR(VLOOKUP(REAL[[#This Row],[PERFIL]],$H$11:$J$16,3,FALSE),0) -> 0 | L84: =+REAL[[#This Row],[HORAS]]*REAL[[#This Row],[MULTP]]*REAL[[#This Row],[HORARIO EXTENDIDO]] -> 0
J85: =+IFERROR(VLOOKUP(REAL[[#This Row],[PERFIL]],$H$11:$J$16,3,FALSE),0) -> 0 | L85: =+REAL[[#This Row],[HORAS]]*REAL[[#This Row],[MULTP]]*REAL[[#This Row],[HORARIO EXTENDIDO]] -> 0
J86: =+IFERROR(VLOOKUP(REAL[[#This Row],[PERFIL]],$H$11:$J$16,3,FALSE),0) -> 0 | L86: =+REAL[[#This Row],[HORAS]]*REAL[[#This Row],[MULTP]]*REAL[[#This Row],[HORARIO EXTENDIDO]] -> 0
J87: =+IFERROR(VLOOKUP(REAL[[#This Row],[PERFIL]],$H$11:$J$16,3,FALSE),0) -> 0 | L87: =+REAL[[#This Row],[HORAS]]*REAL[[#This Row],[MULTP]]*REAL[[#This Row],[HORARIO EXTENDIDO]] -> 0
J88: =+IFERROR(VLOOKUP(REAL[[#This Row],[PERFIL]],$H$11:$J$16,3,FALSE),0) -> 0 | L88: =+REAL[[#This Row],[HORAS]]*REAL[[#This Row],[MULTP]]*REAL[[#This Row],[HORARIO EXTENDIDO]] -> 0
J89: =+IFERROR(VLOOKUP(REAL[[#This Row],[PERFIL]],$H$11:$J$16,3,FALSE),0) -> 0 | L89: =+REAL[[#This Row],[HORAS]]*REAL[[#This Row],[MULTP]]*REAL[[#This Row],[HORARIO EXTENDIDO]] -> 0
J90: =+IFERROR(VLOOKUP(REAL[[#This Row],[PERFIL]],$H$11:$J$16,3,FALSE),0) -> 0 | L90: =+REAL[[#This Row],[HORAS]]*REAL[[#This Row],[MULTP]]*REAL[[#This Row],[HORARIO EXTENDIDO]] -> 0
J91: =+IFERROR(VLOOKUP(REAL[[#This Row],[PERFIL]],$H$11:$J$16,3,FALSE),0) -> 0 | L91: =+REAL[[#This Row],[HORAS]]*REAL[[#This Row],[MULTP]]*REAL[[#This Row],[HORARIO EXTENDIDO]] -> 0
J92: =+IFERROR(VLOOKUP(REAL[[#This Row],[PERFIL]],$H$11:$J$16,3,FALSE),0) -> 0 | L92: =+REAL[[#This Row],[HORAS]]*REAL[[#This Row],[MULTP]]*REAL[[#This Row],[HORARIO EXTENDIDO]] -> 0
J93: =+IFERROR(VLOOKUP(REAL[[#This Row],[PERFIL]],$H$11:$J$16,3,FALSE),0) -> 0 | L93: =+REAL[[#This Row],[HORAS]]*REAL[[#This Row],[MULTP]]*REAL[[#This Row],[HORARIO EXTENDIDO]] -> 0
J94: =+IFERROR(VLOOKUP(REAL[[#This Row],[PERFIL]],$H$11:$J$16,3,FALSE),0) -> 0 | L94: =+REAL[[#This Row],[HORAS]]*REAL[[#This Row],[MULTP]]*REAL[[#This Row],[HORARIO EXTENDIDO]] -> 0
J95: =+IFERROR(VLOOKUP(REAL[[#This Row],[PERFIL]],$H$11:$J$16,3,FALSE),0) -> 0 | L95: =+REAL[[#This Row],[HORAS]]*REAL[[#This Row],[MULTP]]*REAL[[#This Row],[HORARIO EXTENDIDO]] -> 0
J96: =+IFERROR(VLOOKUP(REAL[[#This Row],[PERFIL]],$H$11:$J$16,3,FALSE),0) -> 0 | L96: =+REAL[[#This Row],[HORAS]]*REAL[[#This Row],[MULTP]]*REAL[[#This Row],[HORARIO EXTENDIDO]] -> 0
J97: =+IFERROR(VLOOKUP(REAL[[#This Row],[PERFIL]],$H$11:$J$16,3,FALSE),0) -> 0 | L97: =+REAL[[#This Row],[HORAS]]*REAL[[#This Row],[MULTP]]*REAL[[#This Row],[HORARIO EXTENDIDO]] -> 0
J98: =+IFERROR(VLOOKUP(REAL[[#This Row],[PERFIL]],$H$11:$J$16,3,FALSE),0) -> 0 | L98: =+REAL[[#This Row],[HORAS]]*REAL[[#This Row],[MULTP]]*REAL[[#This Row],[HORARIO EXTENDIDO]] -> 0
J99: =+IFERROR(VLOOKUP(REAL[[#This Row],[PERFIL]],$H$11:$J$16,3,FALSE),0) -> 0 | L99: =+REAL[[#This Row],[HORAS]]*REAL[[#This Row],[MULTP]]*REAL[[#This Row],[HORARIO EXTENDIDO]] -> 0
J100: =+IFERROR(VLOOKUP(REAL[[#This Row],[PERFIL]],$H$11:$J$16,3,FALSE),0) -> 0 | L100: =+REAL[[#This Row],[HORAS]]*REAL[[#This Row],[MULTP]]*REAL[[#This Row],[HORARIO EXTENDIDO]] -> 0
J101: =+IFERROR(VLOOKUP(REAL[[#This Row],[PERFIL]],$H$11:$J$16,3,FALSE),0) -> 0 | L101: =+REAL[[#This Row],[HORAS]]*REAL[[#This Row],[MULTP]]*REAL[[#This Row],[HORARIO EXTENDIDO]] -> 0
J102: =+IFERROR(VLOOKUP(REAL[[#This Row],[PERFIL]],$H$11:$J$16,3,FALSE),0) -> 0 | L102: =+REAL[[#This Row],[HORAS]]*REAL[[#This Row],[MULTP]]*REAL[[#This Row],[HORARIO EXTENDIDO]] -> 0
J103: =+IFERROR(VLOOKUP(REAL[[#This Row],[PERFIL]],$H$11:$J$16,3,FALSE),0) -> 0 | L103: =+REAL[[#This Row],[HORAS]]*REAL[[#This Row],[MULTP]]*REAL[[#This Row],[HORARIO EXTENDIDO]] -> 0
J104: =+IFERROR(VLOOKUP(REAL[[#This Row],[PERFIL]],$H$11:$J$16,3,FALSE),0) -> 0 | L104: =+REAL[[#This Row],[HORAS]]*REAL[[#This Row],[MULTP]]*REAL[[#This Row],[HORARIO EXTENDIDO]] -> 0
J105: =+IFERROR(VLOOKUP(REAL[[#This Row],[PERFIL]],$H$11:$J$16,3,FALSE),0) -> 0 | L105: =+REAL[[#This Row],[HORAS]]*REAL[[#This Row],[MULTP]]*REAL[[#This Row],[HORARIO EXTENDIDO]] -> 0
J106: =+IFERROR(VLOOKUP(REAL[[#This Row],[PERFIL]],$H$11:$J$16,3,FALSE),0) -> 0 | L106: =+REAL[[#This Row],[HORAS]]*REAL[[#This Row],[MULTP]]*REAL[[#This Row],[HORARIO EXTENDIDO]] -> 0
J107: =+IFERROR(VLOOKUP(REAL[[#This Row],[PERFIL]],$H$11:$J$16,3,FALSE),0) -> 0 | L107: =+REAL[[#This Row],[HORAS]]*REAL[[#This Row],[MULTP]]*REAL[[#This Row],[HORARIO EXTENDIDO]] -> 0
J108: =+IFERROR(VLOOKUP(REAL[[#This Row],[PERFIL]],$H$11:$J$16,3,FALSE),0) -> 0 | L108: =+REAL[[#This Row],[HORAS]]*REAL[[#This Row],[MULTP]]*REAL[[#This Row],[HORARIO EXTENDIDO]] -> 0
J109: =+IFERROR(VLOOKUP(REAL[[#This Row],[PERFIL]],$H$11:$J$16,3,FALSE),0) -> 0 | L109: =+REAL[[#This Row],[HORAS]]*REAL[[#This Row],[MULTP]]*REAL[[#This Row],[HORARIO EXTENDIDO]] -> 0
J110: =+IFERROR(VLOOKUP(REAL[[#This Row],[PERFIL]],$H$11:$J$16,3,FALSE),0) -> 0 | L110: =+REAL[[#This Row],[HORAS]]*REAL[[#This Row],[MULTP]]*REAL[[#This Row],[HORARIO EXTENDIDO]] -> 0
J111: =+IFERROR(VLOOKUP(REAL[[#This Row],[PERFIL]],$H$11:$J$16,3,FALSE),0) -> 0 | L111: =+REAL[[#This Row],[HORAS]]*REAL[[#This Row],[MULTP]]*REAL[[#This Row],[HORARIO EXTENDIDO]] -> 0
J112: =+IFERROR(VLOOKUP(REAL[[#This Row],[PERFIL]],$H$11:$J$16,3,FALSE),0) -> 0 | L112: =+REAL[[#This Row],[HORAS]]*REAL[[#This Row],[MULTP]]*REAL[[#This Row],[HORARIO EXTENDIDO]] -> 0
J113: =+IFERROR(VLOOKUP(REAL[[#This Row],[PERFIL]],$H$11:$J$16,3,FALSE),0) -> 0 | L113: =+REAL[[#This Row],[HORAS]]*REAL[[#This Row],[MULTP]]*REAL[[#This Row],[HORARIO EXTENDIDO]] -> 0
J114: =+IFERROR(VLOOKUP(REAL[[#This Row],[PERFIL]],$H$11:$J$16,3,FALSE),0) -> 0 | L114: =+REAL[[#This Row],[HORAS]]*REAL[[#This Row],[MULTP]]*REAL[[#This Row],[HORARIO EXTENDIDO]] -> 0
J115: =+IFERROR(VLOOKUP(REAL[[#This Row],[PERFIL]],$H$11:$J$16,3,FALSE),0) -> 0 | L115: =+REAL[[#This Row],[HORAS]]*REAL[[#This Row],[MULTP]]*REAL[[#This Row],[HORARIO EXTENDIDO]] -> 0
J116: =+IFERROR(VLOOKUP(REAL[[#This Row],[PERFIL]],$H$11:$J$16,3,FALSE),0) -> 0 | L116: =+REAL[[#This Row],[HORAS]]*REAL[[#This Row],[MULTP]]*REAL[[#This Row],[HORARIO EXTENDIDO]] -> 0
J117: =+IFERROR(VLOOKUP(REAL[[#This Row],[PERFIL]],$H$11:$J$16,3,FALSE),0) -> 0 | L117: =+REAL[[#This Row],[HORAS]]*REAL[[#This Row],[MULTP]]*REAL[[#This Row],[HORARIO EXTENDIDO]] -> 0
J118: =+IFERROR(VLOOKUP(REAL[[#This Row],[PERFIL]],$H$11:$J$16,3,FALSE),0) -> 0 | L118: =+REAL[[#This Row],[HORAS]]*REAL[[#This Row],[MULTP]]*REAL[[#This Row],[HORARIO EXTENDIDO]] -> 0
J119: =+IFERROR(VLOOKUP(REAL[[#This Row],[PERFIL]],$H$11:$J$16,3,FALSE),0) -> 0 | L119: =+REAL[[#This Row],[HORAS]]*REAL[[#This Row],[MULTP]]*REAL[[#This Row],[HORARIO EXTENDIDO]] -> 0
J120: =+IFERROR(VLOOKUP(REAL[[#This Row],[PERFIL]],$H$11:$J$16,3,FALSE),0) -> 0 | L120: =+REAL[[#This Row],[HORAS]]*REAL[[#This Row],[MULTP]]*REAL[[#This Row],[HORARIO EXTENDIDO]] -> 0
J121: =+IFERROR(VLOOKUP(REAL[[#This Row],[PERFIL]],$H$11:$J$16,3,FALSE),0) -> 0 | L121: =+REAL[[#This Row],[HORAS]]*REAL[[#This Row],[MULTP]]*REAL[[#This Row],[HORARIO EXTENDIDO]] -> 0
J122: =+IFERROR(VLOOKUP(REAL[[#This Row],[PERFIL]],$H$11:$J$16,3,FALSE),0) -> 0 | L122: =+REAL[[#This Row],[HORAS]]*REAL[[#This Row],[MULTP]]*REAL[[#This Row],[HORARIO EXTENDIDO]] -> 0
J123: =+IFERROR(VLOOKUP(REAL[[#This Row],[PERFIL]],$H$11:$J$16,3,FALSE),0) -> 0 | L123: =+REAL[[#This Row],[HORAS]]*REAL[[#This Row],[MULTP]]*REAL[[#This Row],[HORARIO EXTENDIDO]] -> 0
J124: =+IFERROR(VLOOKUP(REAL[[#This Row],[PERFIL]],$H$11:$J$16,3,FALSE),0) -> 0 | L124: =+REAL[[#This Row],[HORAS]]*REAL[[#This Row],[MULTP]]*REAL[[#This Row],[HORARIO EXTENDIDO]] -> 0
J125: =+IFERROR(VLOOKUP(REAL[[#This Row],[PERFIL]],$H$11:$J$16,3,FALSE),0) -> 0 | L125: =+REAL[[#This Row],[HORAS]]*REAL[[#This Row],[MULTP]]*REAL[[#This Row],[HORARIO EXTENDIDO]] -> 0
J126: =+IFERROR(VLOOKUP(REAL[[#This Row],[PERFIL]],$H$11:$J$16,3,FALSE),0) -> 0 | L126: =+REAL[[#This Row],[HORAS]]*REAL[[#This Row],[MULTP]]*REAL[[#This Row],[HORARIO EXTENDIDO]] -> 0
J127: =+IFERROR(VLOOKUP(REAL[[#This Row],[PERFIL]],$H$11:$J$16,3,FALSE),0) -> 0 | L127: =+REAL[[#This Row],[HORAS]]*REAL[[#This Row],[MULTP]]*REAL[[#This Row],[HORARIO EXTENDIDO]] -> 0
J128: =+IFERROR(VLOOKUP(REAL[[#This Row],[PERFIL]],$H$11:$J$16,3,FALSE),0) -> 0 | L128: =+REAL[[#This Row],[HORAS]]*REAL[[#This Row],[MULTP]]*REAL[[#This Row],[HORARIO EXTENDIDO]] -> 0
J129: =+IFERROR(VLOOKUP(REAL[[#This Row],[PERFIL]],$H$11:$J$16,3,FALSE),0) -> 0 | L129: =+REAL[[#This Row],[HORAS]]*REAL[[#This Row],[MULTP]]*REAL[[#This Row],[HORARIO EXTENDIDO]] -> 0
J130: =+IFERROR(VLOOKUP(REAL[[#This Row],[PERFIL]],$H$11:$J$16,3,FALSE),0) -> 0 | L130: =+REAL[[#This Row],[HORAS]]*REAL[[#This Row],[MULTP]]*REAL[[#This Row],[HORARIO EXTENDIDO]] -> 0
J131: =+IFERROR(VLOOKUP(REAL[[#This Row],[PERFIL]],$H$11:$J$16,3,FALSE),0) -> 0 | L131: =+REAL[[#This Row],[HORAS]]*REAL[[#This Row],[MULTP]]*REAL[[#This Row],[HORARIO EXTENDIDO]] -> 0
J132: =+IFERROR(VLOOKUP(REAL[[#This Row],[PERFIL]],$H$11:$J$16,3,FALSE),0) -> 0 | L132: =+REAL[[#This Row],[HORAS]]*REAL[[#This Row],[MULTP]]*REAL[[#This Row],[HORARIO EXTENDIDO]] -> 0
J133: =+IFERROR(VLOOKUP(REAL[[#This Row],[PERFIL]],$H$11:$J$16,3,FALSE),0) -> 0 | L133: =+REAL[[#This Row],[HORAS]]*REAL[[#This Row],[MULTP]]*REAL[[#This Row],[HORARIO EXTENDIDO]] -> 0
J134: =+IFERROR(VLOOKUP(REAL[[#This Row],[PERFIL]],$H$11:$J$16,3,FALSE),0) -> 0 | L134: =+REAL[[#This Row],[HORAS]]*REAL[[#This Row],[MULTP]]*REAL[[#This Row],[HORARIO EXTENDIDO]] -> 0
J135: =+IFERROR(VLOOKUP(REAL[[#This Row],[PERFIL]],$H$11:$J$16,3,FALSE),0) -> 0 | L135: =+REAL[[#This Row],[HORAS]]*REAL[[#This Row],[MULTP]]*REAL[[#This Row],[HORARIO EXTENDIDO]] -> 0
J136: =+IFERROR(VLOOKUP(REAL[[#This Row],[PERFIL]],$H$11:$J$16,3,FALSE),0) -> 0 | L136: =+REAL[[#This Row],[HORAS]]*REAL[[#This Row],[MULTP]]*REAL[[#This Row],[HORARIO EXTENDIDO]] -> 0
J137: =+IFERROR(VLOOKUP(REAL[[#This Row],[PERFIL]],$H$11:$J$16,3,FALSE),0) -> 0 | L137: =+REAL[[#This Row],[HORAS]]*REAL[[#This Row],[MULTP]]*REAL[[#This Row],[HORARIO EXTENDIDO]] -> 0
J138: =+IFERROR(VLOOKUP(REAL[[#This Row],[PERFIL]],$H$11:$J$16,3,FALSE),0) -> 0 | L138: =+REAL[[#This Row],[HORAS]]*REAL[[#This Row],[MULTP]]*REAL[[#This Row],[HORARIO EXTENDIDO]] -> 0
J139: =+IFERROR(VLOOKUP(REAL[[#This Row],[PERFIL]],$H$11:$J$16,3,FALSE),0) -> 0 | L139: =+REAL[[#This Row],[HORAS]]*REAL[[#This Row],[MULTP]]*REAL[[#This Row],[HORARIO EXTENDIDO]] -> 0
J140: =+IFERROR(VLOOKUP(REAL[[#This Row],[PERFIL]],$H$11:$J$16,3,FALSE),0) -> 0 | L140: =+REAL[[#This Row],[HORAS]]*REAL[[#This Row],[MULTP]]*REAL[[#This Row],[HORARIO EXTENDIDO]] -> 0
J141: =+IFERROR(VLOOKUP(REAL[[#This Row],[PERFIL]],$H$11:$J$16,3,FALSE),0) -> 0 | L141: =+REAL[[#This Row],[HORAS]]*REAL[[#This Row],[MULTP]]*REAL[[#This Row],[HORARIO EXTENDIDO]] -> 0
J142: =+IFERROR(VLOOKUP(REAL[[#This Row],[PERFIL]],$H$11:$J$16,3,FALSE),0) -> 0 | L142: =+REAL[[#This Row],[HORAS]]*REAL[[#This Row],[MULTP]]*REAL[[#This Row],[HORARIO EXTENDIDO]] -> 0
J143: =+IFERROR(VLOOKUP(REAL[[#This Row],[PERFIL]],$H$11:$J$16,3,FALSE),0) -> 0 | L143: =+REAL[[#This Row],[HORAS]]*REAL[[#This Row],[MULTP]]*REAL[[#This Row],[HORARIO EXTENDIDO]] -> 0
J144: =+IFERROR(VLOOKUP(REAL[[#This Row],[PERFIL]],$H$11:$J$16,3,FALSE),0) -> 0 | L144: =+REAL[[#This Row],[HORAS]]*REAL[[#This Row],[MULTP]]*REAL[[#This Row],[HORARIO EXTENDIDO]] -> 0
J145: =+IFERROR(VLOOKUP(REAL[[#This Row],[PERFIL]],$H$11:$J$16,3,FALSE),0) -> 0 | L145: =+REAL[[#This Row],[HORAS]]*REAL[[#This Row],[MULTP]]*REAL[[#This Row],[HORARIO EXTENDIDO]] -> 0
J146: =+IFERROR(VLOOKUP(REAL[[#This Row],[PERFIL]],$H$11:$J$16,3,FALSE),0) -> 0 | L146: =+REAL[[#This Row],[HORAS]]*REAL[[#This Row],[MULTP]]*REAL[[#This Row],[HORARIO EXTENDIDO]] -> 0
J147: =+IFERROR(VLOOKUP(REAL[[#This Row],[PERFIL]],$H$11:$J$16,3,FALSE),0) -> 0 | L147: =+REAL[[#This Row],[HORAS]]*REAL[[#This Row],[MULTP]]*REAL[[#This Row],[HORARIO EXTENDIDO]] -> 0
J148: =+IFERROR(VLOOKUP(REAL[[#This Row],[PERFIL]],$H$11:$J$16,3,FALSE),0) -> 0 | L148: =+REAL[[#This Row],[HORAS]]*REAL[[#This Row],[MULTP]]*REAL[[#This Row],[HORARIO EXTENDIDO]] -> 0
J149: =+IFERROR(VLOOKUP(REAL[[#This Row],[PERFIL]],$H$11:$J$16,3,FALSE),0) -> 0 | L149: =+REAL[[#This Row],[HORAS]]*REAL[[#This Row],[MULTP]]*REAL[[#This Row],[HORARIO EXTENDIDO]] -> 0
J150: =+IFERROR(VLOOKUP(REAL[[#This Row],[PERFIL]],$H$11:$J$16,3,FALSE),0) -> 0 | L150: =+REAL[[#This Row],[HORAS]]*REAL[[#This Row],[MULTP]]*REAL[[#This Row],[HORARIO EXTENDIDO]] -> 0
J151: =+IFERROR(VLOOKUP(REAL[[#This Row],[PERFIL]],$H$11:$J$16,3,FALSE),0) -> 0 | L151: =+REAL[[#This Row],[HORAS]]*REAL[[#This Row],[MULTP]]*REAL[[#This Row],[HORARIO EXTENDIDO]] -> 0
J152: =+IFERROR(VLOOKUP(REAL[[#This Row],[PERFIL]],$H$11:$J$16,3,FALSE),0) -> 0 | L152: =+REAL[[#This Row],[HORAS]]*REAL[[#This Row],[MULTP]]*REAL[[#This Row],[HORARIO EXTENDIDO]] -> 0
J153: =+IFERROR(VLOOKUP(REAL[[#This Row],[PERFIL]],$H$11:$J$16,3,FALSE),0) -> 0 | L153: =+REAL[[#This Row],[HORAS]]*REAL[[#This Row],[MULTP]]*REAL[[#This Row],[HORARIO EXTENDIDO]] -> 0
J154: =+IFERROR(VLOOKUP(REAL[[#This Row],[PERFIL]],$H$11:$J$16,3,FALSE),0) -> 0 | L154: =+REAL[[#This Row],[HORAS]]*REAL[[#This Row],[MULTP]]*REAL[[#This Row],[HORARIO EXTENDIDO]] -> 0
J155: =+IFERROR(VLOOKUP(REAL[[#This Row],[PERFIL]],$H$11:$J$16,3,FALSE),0) -> 0 | L155: =+REAL[[#This Row],[HORAS]]*REAL[[#This Row],[MULTP]]*REAL[[#This Row],[HORARIO EXTENDIDO]] -> 0
J156: =+IFERROR(VLOOKUP(REAL[[#This Row],[PERFIL]],$H$11:$J$16,3,FALSE),0) -> 0 | L156: =+REAL[[#This Row],[HORAS]]*REAL[[#This Row],[MULTP]]*REAL[[#This Row],[HORARIO EXTENDIDO]] -> 0
J157: =+IFERROR(VLOOKUP(REAL[[#This Row],[PERFIL]],$H$11:$J$16,3,FALSE),0) -> 0 | L157: =+REAL[[#This Row],[HORAS]]*REAL[[#This Row],[MULTP]]*REAL[[#This Row],[HORARIO EXTENDIDO]] -> 0
J158: =+IFERROR(VLOOKUP(REAL[[#This Row],[PERFIL]],$H$11:$J$16,3,FALSE),0) -> 0 | L158: =+REAL[[#This Row],[HORAS]]*REAL[[#This Row],[MULTP]]*REAL[[#This Row],[HORARIO EXTENDIDO]] -> 0
J159: =+IFERROR(VLOOKUP(REAL[[#This Row],[PERFIL]],$H$11:$J$16,3,FALSE),0) -> 0 | L159: =+REAL[[#This Row],[HORAS]]*REAL[[#This Row],[MULTP]]*REAL[[#This Row],[HORARIO EXTENDIDO]] -> 0
J160: =+IFERROR(VLOOKUP(REAL[[#This Row],[PERFIL]],$H$11:$J$16,3,FALSE),0) -> 0 | L160: =+REAL[[#This Row],[HORAS]]*REAL[[#This Row],[MULTP]]*REAL[[#This Row],[HORARIO EXTENDIDO]] -> 0
J161: =+IFERROR(VLOOKUP(REAL[[#This Row],[PERFIL]],$H$11:$J$16,3,FALSE),0) -> 0 | L161: =+REAL[[#This Row],[HORAS]]*REAL[[#This Row],[MULTP]]*REAL[[#This Row],[HORARIO EXTENDIDO]] -> 0
J162: =+IFERROR(VLOOKUP(REAL[[#This Row],[PERFIL]],$H$11:$J$16,3,FALSE),0) -> 0 | L162: =+REAL[[#This Row],[HORAS]]*REAL[[#This Row],[MULTP]]*REAL[[#This Row],[HORARIO EXTENDIDO]] -> 0
J163: =+IFERROR(VLOOKUP(REAL[[#This Row],[PERFIL]],$H$11:$J$16,3,FALSE),0) -> 0 | L163: =+REAL[[#This Row],[HORAS]]*REAL[[#This Row],[MULTP]]*REAL[[#This Row],[HORARIO EXTENDIDO]] -> 0
J164: =+IFERROR(VLOOKUP(REAL[[#This Row],[PERFIL]],$H$11:$J$16,3,FALSE),0) -> 0 | L164: =+REAL[[#This Row],[HORAS]]*REAL[[#This Row],[MULTP]]*REAL[[#This Row],[HORARIO EXTENDIDO]] -> 0
J165: =+IFERROR(VLOOKUP(REAL[[#This Row],[PERFIL]],$H$11:$J$16,3,FALSE),0) -> 0 | L165: =+REAL[[#This Row],[HORAS]]*REAL[[#This Row],[MULTP]]*REAL[[#This Row],[HORARIO EXTENDIDO]] -> 0
J166: =+IFERROR(VLOOKUP(REAL[[#This Row],[PERFIL]],$H$11:$J$16,3,FALSE),0) -> 0 | L166: =+REAL[[#This Row],[HORAS]]*REAL[[#This Row],[MULTP]]*REAL[[#This Row],[HORARIO EXTENDIDO]] -> 0
J167: =+IFERROR(VLOOKUP(REAL[[#This Row],[PERFIL]],$H$11:$J$16,3,FALSE),0) -> 0 | L167: =+REAL[[#This Row],[HORAS]]*REAL[[#This Row],[MULTP]]*REAL[[#This Row],[HORARIO EXTENDIDO]] -> 0
J168: =+IFERROR(VLOOKUP(REAL[[#This Row],[PERFIL]],$H$11:$J$16,3,FALSE),0) -> 0 | L168: =+REAL[[#This Row],[HORAS]]*REAL[[#This Row],[MULTP]]*REAL[[#This Row],[HORARIO EXTENDIDO]] -> 0
J169: =+IFERROR(VLOOKUP(REAL[[#This Row],[PERFIL]],$H$11:$J$16,3,FALSE),0) -> 0 | L169: =+REAL[[#This Row],[HORAS]]*REAL[[#This Row],[MULTP]]*REAL[[#This Row],[HORARIO EXTENDIDO]] -> 0
J170: =+IFERROR(VLOOKUP(REAL[[#This Row],[PERFIL]],$H$11:$J$16,3,FALSE),0) -> 0 | L170: =+REAL[[#This Row],[HORAS]]*REAL[[#This Row],[MULTP]]*REAL[[#This Row],[HORARIO EXTENDIDO]] -> 0
J171: =+IFERROR(VLOOKUP(REAL[[#This Row],[PERFIL]],$H$11:$J$16,3,FALSE),0) -> 0 | L171: =+REAL[[#This Row],[HORAS]]*REAL[[#This Row],[MULTP]]*REAL[[#This Row],[HORARIO EXTENDIDO]] -> 0
J172: =+IFERROR(VLOOKUP(REAL[[#This Row],[PERFIL]],$H$11:$J$16,3,FALSE),0) -> 0 | L172: =+REAL[[#This Row],[HORAS]]*REAL[[#This Row],[MULTP]]*REAL[[#This Row],[HORARIO EXTENDIDO]] -> 0
J173: =+IFERROR(VLOOKUP(REAL[[#This Row],[PERFIL]],$H$11:$J$16,3,FALSE),0) -> 0 | L173: =+REAL[[#This Row],[HORAS]]*REAL[[#This Row],[MULTP]]*REAL[[#This Row],[HORARIO EXTENDIDO]] -> 0
J174: =+IFERROR(VLOOKUP(REAL[[#This Row],[PERFIL]],$H$11:$J$16,3,FALSE),0) -> 0 | L174: =+REAL[[#This Row],[HORAS]]*REAL[[#This Row],[MULTP]]*REAL[[#This Row],[HORARIO EXTENDIDO]] -> 0
J175: =+IFERROR(VLOOKUP(REAL[[#This Row],[PERFIL]],$H$11:$J$16,3,FALSE),0) -> 0 | L175: =+REAL[[#This Row],[HORAS]]*REAL[[#This Row],[MULTP]]*REAL[[#This Row],[HORARIO EXTENDIDO]] -> 0
J176: =+IFERROR(VLOOKUP(REAL[[#This Row],[PERFIL]],$H$11:$J$16,3,FALSE),0) -> 0 | L176: =+REAL[[#This Row],[HORAS]]*REAL[[#This Row],[MULTP]]*REAL[[#This Row],[HORARIO EXTENDIDO]] -> 0
J177: =+IFERROR(VLOOKUP(REAL[[#This Row],[PERFIL]],$H$11:$J$16,3,FALSE),0) -> 0 | L177: =+REAL[[#This Row],[HORAS]]*REAL[[#This Row],[MULTP]]*REAL[[#This Row],[HORARIO EXTENDIDO]] -> 0
J178: =+IFERROR(VLOOKUP(REAL[[#This Row],[PERFIL]],$H$11:$J$16,3,FALSE),0) -> 0 | L178: =+REAL[[#This Row],[HORAS]]*REAL[[#This Row],[MULTP]]*REAL[[#This Row],[HORARIO EXTENDIDO]] -> 0
J179: =+IFERROR(VLOOKUP(REAL[[#This Row],[PERFIL]],$H$11:$J$16,3,FALSE),0) -> 0 | L179: =+REAL[[#This Row],[HORAS]]*REAL[[#This Row],[MULTP]]*REAL[[#This Row],[HORARIO EXTENDIDO]] -> 0
J180: =+IFERROR(VLOOKUP(REAL[[#This Row],[PERFIL]],$H$11:$J$16,3,FALSE),0) -> 0 | L180: =+REAL[[#This Row],[HORAS]]*REAL[[#This Row],[MULTP]]*REAL[[#This Row],[HORARIO EXTENDIDO]] -> 0
J181: =+IFERROR(VLOOKUP(REAL[[#This Row],[PERFIL]],$H$11:$J$16,3,FALSE),0) -> 0 | L181: =+REAL[[#This Row],[HORAS]]*REAL[[#This Row],[MULTP]]*REAL[[#This Row],[HORARIO EXTENDIDO]] -> 0
J182: =+IFERROR(VLOOKUP(REAL[[#This Row],[PERFIL]],$H$11:$J$16,3,FALSE),0) -> 0 | L182: =+REAL[[#This Row],[HORAS]]*REAL[[#This Row],[MULTP]]*REAL[[#This Row],[HORARIO EXTENDIDO]] -> 0
J183: =+IFERROR(VLOOKUP(REAL[[#This Row],[PERFIL]],$H$11:$J$16,3,FALSE),0) -> 0 | L183: =+REAL[[#This Row],[HORAS]]*REAL[[#This Row],[MULTP]]*REAL[[#This Row],[HORARIO EXTENDIDO]] -> 0
J184: =+IFERROR(VLOOKUP(REAL[[#This Row],[PERFIL]],$H$11:$J$16,3,FALSE),0) -> 0 | L184: =+REAL[[#This Row],[HORAS]]*REAL[[#This Row],[MULTP]]*REAL[[#This Row],[HORARIO EXTENDIDO]] -> 0
J185: =+IFERROR(VLOOKUP(REAL[[#This Row],[PERFIL]],$H$11:$J$16,3,FALSE),0) -> 0 | L185: =+REAL[[#This Row],[HORAS]]*REAL[[#This Row],[MULTP]]*REAL[[#This Row],[HORARIO EXTENDIDO]] -> 0
J186: =+IFERROR(VLOOKUP(REAL[[#This Row],[PERFIL]],$H$11:$J$16,3,FALSE),0) -> 0 | L186: =+REAL[[#This Row],[HORAS]]*REAL[[#This Row],[MULTP]]*REAL[[#This Row],[HORARIO EXTENDIDO]] -> 0
J187: =+IFERROR(VLOOKUP(REAL[[#This Row],[PERFIL]],$H$11:$J$16,3,FALSE),0) -> 0 | L187: =+REAL[[#This Row],[HORAS]]*REAL[[#This Row],[MULTP]]*REAL[[#This Row],[HORARIO EXTENDIDO]] -> 0
J188: =+IFERROR(VLOOKUP(REAL[[#This Row],[PERFIL]],$H$11:$J$16,3,FALSE),0) -> 0 | L188: =+REAL[[#This Row],[HORAS]]*REAL[[#This Row],[MULTP]]*REAL[[#This Row],[HORARIO EXTENDIDO]] -> 0
J189: =+IFERROR(VLOOKUP(REAL[[#This Row],[PERFIL]],$H$11:$J$16,3,FALSE),0) -> 0 | L189: =+REAL[[#This Row],[HORAS]]*REAL[[#This Row],[MULTP]]*REAL[[#This Row],[HORARIO EXTENDIDO]] -> 0
J190: =+IFERROR(VLOOKUP(REAL[[#This Row],[PERFIL]],$H$11:$J$16,3,FALSE),0) -> 0 | L190: =+REAL[[#This Row],[HORAS]]*REAL[[#This Row],[MULTP]]*REAL[[#This Row],[HORARIO EXTENDIDO]] -> 0
J191: =+IFERROR(VLOOKUP(REAL[[#This Row],[PERFIL]],$H$11:$J$16,3,FALSE),0) -> 0 | L191: =+REAL[[#This Row],[HORAS]]*REAL[[#This Row],[MULTP]]*REAL[[#This Row],[HORARIO EXTENDIDO]] -> 0
J192: =+IFERROR(VLOOKUP(REAL[[#This Row],[PERFIL]],$H$11:$J$16,3,FALSE),0) -> 0 | L192: =+REAL[[#This Row],[HORAS]]*REAL[[#This Row],[MULTP]]*REAL[[#This Row],[HORARIO EXTENDIDO]] -> 0
J193: =+IFERROR(VLOOKUP(REAL[[#This Row],[PERFIL]],$H$11:$J$16,3,FALSE),0) -> 0 | L193: =+REAL[[#This Row],[HORAS]]*REAL[[#This Row],[MULTP]]*REAL[[#This Row],[HORARIO EXTENDIDO]] -> 0
J194: =+IFERROR(VLOOKUP(REAL[[#This Row],[PERFIL]],$H$11:$J$16,3,FALSE),0) -> 0 | L194: =+REAL[[#This Row],[HORAS]]*REAL[[#This Row],[MULTP]]*REAL[[#This Row],[HORARIO EXTENDIDO]] -> 0
J195: =+IFERROR(VLOOKUP(REAL[[#This Row],[PERFIL]],$H$11:$J$16,3,FALSE),0) -> 0 | L195: =+REAL[[#This Row],[HORAS]]*REAL[[#This Row],[MULTP]]*REAL[[#This Row],[HORARIO EXTENDIDO]] -> 0
J196: =+IFERROR(VLOOKUP(REAL[[#This Row],[PERFIL]],$H$11:$J$16,3,FALSE),0) -> 0 | L196: =+REAL[[#This Row],[HORAS]]*REAL[[#This Row],[MULTP]]*REAL[[#This Row],[HORARIO EXTENDIDO]] -> 0
J197: =+IFERROR(VLOOKUP(REAL[[#This Row],[PERFIL]],$H$11:$J$16,3,FALSE),0) -> 0 | L197: =+REAL[[#This Row],[HORAS]]*REAL[[#This Row],[MULTP]]*REAL[[#This Row],[HORARIO EXTENDIDO]] -> 0
J198: =+IFERROR(VLOOKUP(REAL[[#This Row],[PERFIL]],$H$11:$J$16,3,FALSE),0) -> 0 | L198: =+REAL[[#This Row],[HORAS]]*REAL[[#This Row],[MULTP]]*REAL[[#This Row],[HORARIO EXTENDIDO]] -> 0
J199: =+IFERROR(VLOOKUP(REAL[[#This Row],[PERFIL]],$H$11:$J$16,3,FALSE),0) -> 0 | L199: =+REAL[[#This Row],[HORAS]]*REAL[[#This Row],[MULTP]]*REAL[[#This Row],[HORARIO EXTENDIDO]] -> 0
J200: =+IFERROR(VLOOKUP(REAL[[#This Row],[PERFIL]],$H$11:$J$16,3,FALSE),0) -> 0 | L200: =+REAL[[#This Row],[HORAS]]*REAL[[#This Row],[MULTP]]*REAL[[#This Row],[HORARIO EXTENDIDO]] -> 0

Sheet ESTIMACION vs REAL
B2: COMPARATIVA DE HORAS POR PERFIL | H2: COMPARATIVA DE HBS POR PERFIL
N3: JUSTIFICACIÓN DE LA DESVIACIÓN
C4: ESTIMACION | D4: REAL | E4: DIFERENCIA | F4: DESVIACION | I4: ESTIMACION | J4: REAL | K4: DIFERENCIA | L4: DESVIACION
B5: CO | C5: =+ESTIMACION!I11 -> 72 | D5: =+'REAL'!I11 -> 123 | E5: =+D5-C5 -> 51 | F5: =+IFERROR((D5-C5)/C5,0) -> 0.7083333333 | H5: CO | I5: =+ESTIMACION!K11 -> 144 | J5: =+'REAL'!K11 -> 246 | K5: =+J5-I5 -> 102 | L5: =+IFERROR((J5-I5)/I5,0)*100 -> 70.83333333
B6: AF | C6: =+ESTIMACION!I12 -> 80 | D6: =+'REAL'!I12 -> 68.25 | E6: =+D6-C6 -> -11.75 | F6: =+IFERROR((D6-C6)/C6,0)*100 -> -14.6875 | H6: AF | I6: =+ESTIMACION!K12 -> 140 | J6: =+'REAL'!K12 -> 119.4375 | K6: =+J6-I6 -> -20.5625 | L6: =+IFERROR((J6-I6)/I6,0)*100 -> -14.6875
B7: AP | C7: =+ESTIMACION!I13 -> 0 | D7: =+'REAL'!I13 -> 0 | E7: 0 | F7: =+IFERROR((D7-C7)/C7,0) -> 0 | H7: AP | I7: =+ESTIMACION!K13 -> 0 | J7: =+'REAL'!K13 -> 0 | K7: 0 | L7: 0
B8: PR | C8: =+ESTIMACION!I14 -> 34 | D8: =+'REAL'!I14 -> 36 | E8: 2 | F8: 0.05882352941 | H8: PR | I8: =+ESTIMACION!K14 -> 42.5 | J8: =+'REAL'!K14 -> 45 | K8: 2.5 | L8: 5.882352941
B9: PJ | C9: =+ESTIMACION!I15 -> 11 | D9: =+'REAL'!I15 -> 15 | E9: 4 | F9: 0.3636363636 | H9: PJ | I9: =+ESTIMACION!K15 -> 11 | J9: =+'REAL'!K15 -> 15 | K9: 4 | L9: 36.36363636
B10: TOTAL OT | C10: =SUM(C5:C9) -> 197 | D10: =SUM(D5:D9) -> 242.25 | E10: =SUM(E5:E9) -> 45.25 | F10: =+IFERROR((D10-C10)/C10,0) -> 0.2296954315 | H10: TOTAL OT | I10: =SUM(I5:I9) -> 337.5 | J10: =SUM(J5:J9) -> 425.4375 | K10: =SUM(K5:K9) -> 87.9375 | L10: 26.05555556
B13: COMPARATIVA DE HORAS POR TIPO ACTIVIDAD | H13: COMPARATIVA DE HBS POR TIPO DE ACTIVIDAD
C15: HORAS | D15: REAL | E15: DIFERENCIA | F15: DESVIACION | I15: HBS | J15: REAL | K15: DIFERENCIA | L15: DESVIACION
B16: PRODUCCION | C16: =+ESTIMACION!I20 -> 114 | D16: =+'REAL'!I20 -> 116.75 | E16: =+D16-C16 -> 2.75 | F16: =+IFERROR((D16-C16)/C16,0)*100 -> 2.412280702 | H16: PRODUCCION | I16: =+ESTIMACION!J20 -> 184.25 | J16: =+'REAL'!J20 -> 184.8125 | K16: =+J16-I16 -> 0.5625 | L16: =+IFERROR((J16-I16)/I16,0)*100 -> 0.3052917232
B17: GESTION | C17: =+ESTIMACION!I21 -> 22 | D17: =+'REAL'!I21 -> 18.5 | E17: =+D17-C17 -> -3.5 | F17: =+IFERROR((D17-C17)/C17,0)*100 -> -15.90909091 | H17: GESTION | I17: =+ESTIMACION!J21 -> 34 | J17: =+'REAL'!J21 -> 28.375 | K17: =+J17-I17 -> -5.625 | L17: =+IFERROR((J17-I17)/I17,0)*100 -> -16.54411765
B18: REUNION | C18: =+ESTIMACION!I22 -> 61 | D18: =+'REAL'!I22 -> 107 | E18: 46 | F18: 75.40983607 | H18: REUNION | I18: =+ESTIMACION!J22 -> 119.25 | J18: =+'REAL'!J22 -> 212.25 | K18: 93 | L18: 77.98742138
B19: TOTAL OT | C19: =SUM(C16:C18) -> 197 | D19: =SUM(D14:D18) -> 242.25 | E19: =SUM(E16:E18) -> 45.25 | F19: =+IFERROR((D19-C19)/C19,0) -> 0.2296954315 | H19: TOTAL OT | I19: =SUM(I14:I18) -> 337.5 | J19: =SUM(J14:J18) -> 425.4375 | K19: =SUM(K16:K18) -> 87.9375 | L19: =+IFERROR((J19-I19)/I19,0)*100 -> 26.05555556
B22: COMPARATIVA DE HBS POR ACTIVIDAD
B24: TAREA | G24: HBS | H24: REAL | I24: DIFERENCIA | J24: DESVIACION | K24: JUSTIFICACIÓN DE LA DESVIACIÓN
B25: =+ESTIMACION!D26 -> v3.1 Análisis y validación funcional en desa | G25: =+ESTIMACION!L26 -> 10.5 | H25: =+'REAL'!L26 -> 8.75 | I25: =+H25-G25 -> -1.75 | J25: =+IFERROR((H25-G25)/G25,0)*100 -> -16.66666667
B26: =+ESTIMACION!D27 -> CS- análisis 3.1 | G26: =+ESTIMACION!L27 -> 5.25 | H26: =+'REAL'!L27 -> 4.375 | I26: =+H26-G26 -> -0.875 | J26: =+IFERROR((H26-G26)/G26,0)*100 -> -16.66666667
B27: =+ESTIMACION!D28 -> v3.1 Análisis y validación funcional en desa | G27: =+ESTIMACION!L28 -> 8.75 | H27: =+'REAL'!L28 -> 12.25 | I27: 3.5 | J27: 40
B28: =+ESTIMACION!D29 -> ClicSalud 3.1 - Mejoras EIDAS | G28: =+ESTIMACION!L29 -> 5 | H28: =+'REAL'!L29 -> 10 | I28: 5 | J28: 100
B29: =+ESTIMACION!D30 -> ClicSalud 3.1 - Mejoras EIDAS | G29: =+ESTIMACION!L30 -> 11.25 | H29: =+'REAL'!L30 -> 10 | I29: -1.25 | J29: -11.11111111
B30: =+ESTIMACION!D31 -> v3.1 Análisis y validación funcional en desa | G30: =+ESTIMACION!L31 -> 8.75 | H30: =+'REAL'!L31 -> 5.6875 | I30: -3.0625 | J30: -35
B31: =+ESTIMACION!D32 -> ClicSalud 3.1 - Mejoras EIDAS | G31: =+ESTIMACION!L32 -> 3 | H31: =+'REAL'!L32 -> 3 | I31: 0 | J31: 0
B32: =+ESTIMACION!D33 -> v3.1 Análisis y validación funcional en desa | G32: =+ESTIMACION!L33 -> 14 | H32: =+'REAL'!L33 -> 6.125 | I32: -7.875 | J32: -56.25
B33: =+ESTIMACION!D34 -> CS- análisis 3.1 | G33: =+ESTIMACION!L34 -> 15.75 | H33: =+'REAL'!L34 -> 7.875 | I33: -7.875 | J33: -50
B34: =+ESTIMACION!D35 -> ClicSalud 3.1 - Mejoras EIDAS | G34: =+ESTIMACION!L35 -> 3.75 | H34: =+'REAL'!L35 -> 6.25 | I34: 2.5 | J34: 66.66666667
B35: =+ESTIMACION!D36 -> v3.1 Análisis y validación funcional en desa | G35: =+ESTIMACION!L36 -> 14 | H35: =+'REAL'!L36 -> 7.875 | I35: -6.125 | J35: -43.75
B36: =+ESTIMACION!D37 -> CS- análisis 3.2.1 | G36: =+ESTIMACION!L37 -> 12.25 | H36: =+'REAL'!L37 -> 4.375 | I36: -7.875 | J36: -64.28571429
B37: =+ESTIMACION!D38 -> v3.2.1 Análisis y validación funcional en desa | G37: =+ESTIMACION!L38 -> 11.375 | H37: =+'REAL'!L38 -> 11.375 | I37: 0 | J37: 0
B38: =+ESTIMACION!D39 -> CS 3.2.1 - Cambios en EIDAS | G38: =+ESTIMACION!L39 -> 5 | H38: =+'REAL'!L39 -> 9 | I38: 4 | J38: 80
B39: =+ESTIMACION!D40 -> v3.2.1 Análisis y validación funcional en desa | G39: =+ESTIMACION!L40 -> 5.25 | H39: =+'REAL'!L40 -> 15.75 | I39: 10.5 | J39: 200
B40: =+ESTIMACION!D41 -> ClicSalud 3.2.1 - Mejoras EIDAS | G40: =+ESTIMACION!L41 -> 6.25 | H40: =+'REAL'!L41 -> 3.75 | I40: -2.5 | J40: -40
B41: =+ESTIMACION!D42 -> CLICSALUD v3.1.0.1 Instalaciones en Calidad y entrega a Cliente | G41: =+ESTIMACION!L42 -> 12 | H41: =+'REAL'!L42 -> 10 | I41: -2 | J41: -16.66666667
B42: =+ESTIMACION!D43 -> CS 3.1 - Cambios en EIDAS | G42: =+ESTIMACION!L43 -> 10 | H42: =+'REAL'!L43 -> 11.25 | I42: 1.25 | J42: 12.5
B43: =+ESTIMACION!D44 -> Gestión | G43: =+ESTIMACION!L44 -> 16 | H43: =+'REAL'!L44 -> 18 | I43: 2 | J43: 12.5
B44: =+ESTIMACION!D45 -> Validación funcional CS+ v3.1 PRE | G44: =+ESTIMACION!L45 -> 7.875 | H44: =+'REAL'!L45 -> 6.125 | I44: -1.75 | J44: -22.22222222
B45: =+ESTIMACION!D46 -> v3.1 Análisis y validación funcional en desa | G45: =+ESTIMACION!L46 -> 10.5 | H45: =+'REAL'!L46 -> 8.75 | I45: -1.75 | J45: -16.66666667
B46: =+ESTIMACION!D47 -> v3.1 Cambios EIDAS Implantación PRO | G46: =+ESTIMACION!L47 -> 6.25 | H46: =+'REAL'!L47 -> 3.75 | I46: -2.5 | J46: -40
B47: =+ESTIMACION!D48 -> Gestión | G47: =+ESTIMACION!L48 -> 16 | H47: =+'REAL'!L48 -> 18 | I47: 2 | J47: 12.5
B48: =+ESTIMACION!D49 -> v3.1 Análisis y validación funcional en desa | G48: =+ESTIMACION!L49 -> 8.75 | H48: =+'REAL'!L49 -> 7.875 | I48: -0.875 | J48: -10
B49: =+ESTIMACION!D50 -> v3.1 Análisis y validación funcional en desa | G49: =+ESTIMACION!L50 -> 3.5 | H49: =+'REAL'!L50 -> 5.25 | I49: 1.75 | J49: 50
B50: =+ESTIMACION!D51 -> CS- análisis 3.1 | G50: =+ESTIMACION!L51 -> 3.5 | H50: =+'REAL'!L51 -> 7 | I50: 3.5 | J50: 100
B51: =+ESTIMACION!D52 -> v3.1 Análisis y validación funcional en desa | G51: =+ESTIMACION!L52 -> 3 | H51: =+'REAL'!L52 -> 3 | I51: 0 | J51: 0
B52: =+ESTIMACION!D53 -> v3.2 Análisis y validación funcional en desa | G52: =+ESTIMACION!L53 -> 100 | H52: =+'REAL'!L53 -> 200 | I52: 100 | J52: 100
B53: =+ESTIMACION!D54 -> 0 | G53: =+ESTIMACION!L54 -> 0 | H53: =+'REAL'!L54 -> 0 | I53: 0 | J53: 0
B54: =+ESTIMACION!D55 -> 0 | G54: =+ESTIMACION!L55 -> 0 | H54: =+'REAL'!L55 -> 0 | I54: 0 | J54: 0
B55: =+ESTIMACION!D56 -> 0 | G55: =+ESTIMACION!L56 -> 0 | H55: =+'REAL'!L56 -> 0 | I55: 0 | J55: 0
B56: =+ESTIMACION!D57 -> 0 | G56: =+ESTIMACION!L57 -> 0 | H56: =+'REAL'!L57 -> 0 | I56: 0 | J56: 0
B57: =+ESTIMACION!D58 -> 0 | G57: =+ESTIMACION!L58 -> 0 | H57: =+'REAL'!L58 -> 0 | I57: 0 | J57: 0
B58: =+ESTIMACION!D59 -> 0 | G58: =+ESTIMACION!L59 -> 0 | H58: =+'REAL'!L59 -> 0 | I58: 0 | J58: 0
B59: =+ESTIMACION!D60 -> 0 | G59: =+ESTIMACION!L60 -> 0 | H59: =+'REAL'!L60 -> 0 | I59: 0 | J59: 0
B60: =+ESTIMACION!D61 -> 0 | G60: =+ESTIMACION!L61 -> 0 | H60: =+'REAL'!L61 -> 0 | I60: 0 | J60: 0
B61: =+ESTIMACION!D62 -> 0 | G61: =+ESTIMACION!L62 -> 0 | H61: =+'REAL'!L62 -> 0 | I61: 0 | J61: 0
B62: =+ESTIMACION!D63 -> 0 | G62: =+ESTIMACION!L63 -> 0 | H62: =+'REAL'!L63 -> 0 | I62: 0 | J62: 0
B63: =+ESTIMACION!D64 -> 0 | G63: =+ESTIMACION!L64 -> 0 | H63: =+'REAL'!L64 -> 0 | I63: 0 | J63: 0
B64: =+ESTIMACION!D65 -> 0 | G64: =+ESTIMACION!L65 -> 0 | H64: =+'REAL'!L65 -> 0 | I64: 0 | J64: 0
B65: =+ESTIMACION!D66 -> 0 | G65: =+ESTIMACION!L66 -> 0 | H65: =+'REAL'!L66 -> 0 | I65: 0 | J65: 0
B66: =+ESTIMACION!D67 -> 0 | G66: =+ESTIMACION!L67 -> 0 | H66: =+'REAL'!L67 -> 0 | I66: 0 | J66: 0
B67: =+ESTIMACION!D68 -> 0 | G67: =+ESTIMACION!L68 -> 0 | H67: =+'REAL'!L68 -> 0 | I67: 0 | J67: 0
B68: =+ESTIMACION!D69 -> 0 | G68: =+ESTIMACION!L69 -> 0 | H68: =+'REAL'!L69 -> 0 | I68: 0 | J68: 0
B69: =+ESTIMACION!D70 -> 0 | G69: =+ESTIMACION!L70 -> 0 | H69: =+'REAL'!L70 -> 0 | I69: 0 | J69: 0
B70: =+ESTIMACION!D71 -> 0 | G70: =+ESTIMACION!L71 -> 0 | H70: =+'REAL'!L71 -> 0 | I70: 0 | J70: 0
B71: =+ESTIMACION!D72 -> 0 | G71: =+ESTIMACION!L72 -> 0 | H71: =+'REAL'!L72 -> 0 | I71: 0 | J71: 0
B72: =+ESTIMACION!D73 -> 0 | G72: =+ESTIMACION!L73 -> 0 | H72: =+'REAL'!L73 -> 0 | I72: 0 | J72: 0
B73: =+ESTIMACION!D74 -> 0 | G73: =+ESTIMACION!L74 -> 0 | H73: =+'REAL'!L74 -> 0 | I73: 0 | J73: 0
B74: =+ESTIMACION!D75 -> 0 | G74: =+ESTIMACION!L75 -> 0 | H74: =+'REAL'!L75 -> 0 | I74: 0 | J74: 0
B75: =+ESTIMACION!D76 -> 0 | G75: =+ESTIMACION!L76 -> 0 | H75: =+'REAL'!L76 -> 0 | I75: 0 | J75: 0
B76: =+ESTIMACION!D77 -> 0 | G76: =+ESTIMACION!L77 -> 0 | H76: =+'REAL'!L77 -> 0 | I76: 0 | J76: 0
B77: =+ESTIMACION!D78 -> 0 | G77: =+ESTIMACION!L78 -> 0 | H77: =+'REAL'!L78 -> 0 | I77: 0 | J77: 0
B78: =+ESTIMACION!D79 -> 0 | G78: =+ESTIMACION!L79 -> 0 | H78: =+'REAL'!L79 -> 0 | I78: 0 | J78: 0
B79: =+ESTIMACION!D80 -> 0 | G79: =+ESTIMACION!L80 -> 0 | H79: =+'REAL'!L80 -> 0 | I79: 0 | J79: 0
B80: =+ESTIMACION!D81 -> 0 | G80: =+ESTIMACION!L81 -> 0 | H80: =+'REAL'!L81 -> 0 | I80: 0 | J80: 0
B81: =+ESTIMACION!D82 -> 0 | G81: =+ESTIMACION!L82 -> 0 | H81: =+'REAL'!L82 -> 0 | I81: 0 | J81: 0
B82: =+ESTIMACION!D83 -> 0 | G82: =+ESTIMACION!L83 -> 0 | H82: =+'REAL'!L83 -> 0 | I82: 0 | J82: 0
B83: =+ESTIMACION!D84 -> 0 | G83: =+ESTIMACION!L84 -> 0 | H83: =+'REAL'!L84 -> 0 | I83: 0 | J83: 0
B84: =+ESTIMACION!D85 -> 0 | G84: =+ESTIMACION!L85 -> 0 | H84: =+'REAL'!L85 -> 0 | I84: 0 | J84: 0
B85: =+ESTIMACION!D86 -> 0 | G85: =+ESTIMACION!L86 -> 0 | H85: =+'REAL'!L86 -> 0 | I85: 0 | J85: 0
B86: =+ESTIMACION!D87 -> 0 | G86: =+ESTIMACION!L87 -> 0 | H86: =+'REAL'!L87 -> 0 | I86: 0 | J86: 0
B87: =+ESTIMACION!D88 -> 0 | G87: =+ESTIMACION!L88 -> 0 | H87: =+'REAL'!L88 -> 0 | I87: 0 | J87: 0
B88: =+ESTIMACION!D89 -> 0 | G88: =+ESTIMACION!L89 -> 0 | H88: =+'REAL'!L89 -> 0 | I88: 0 | J88: 0
B89: =+ESTIMACION!D90 -> 0 | G89: =+ESTIMACION!L90 -> 0 | H89: =+'REAL'!L90 -> 0 | I89: 0 | J89: 0
B90: =+ESTIMACION!D91 -> 0 | G90: =+ESTIMACION!L91 -> 0 | H90: =+'REAL'!L91 -> 0 | I90: =+H90-G90 -> 0 | J90: =+IFERROR((H90-G90)/G90,0)*100 -> 0
B91: =+ESTIMACION!D92 -> 0 | G91: =+ESTIMACION!L92 -> 0 | H91: =+'REAL'!L92 -> 0 | I91: 0 | J91: 0
B92: =+ESTIMACION!D93 -> 0 | G92: =+ESTIMACION!L93 -> 0 | H92: =+'REAL'!L93 -> 0 | I92: 0 | J92: 0
B93: =+ESTIMACION!D94 -> 0 | G93: =+ESTIMACION!L94 -> 0 | H93: =+'REAL'!L94 -> 0 | I93: 0 | J93: 0
B94: =+ESTIMACION!D95 -> 0 | G94: =+ESTIMACION!L95 -> 0 | H94: =+'REAL'!L95 -> 0 | I94: 0 | J94: 0
B95: =+ESTIMACION!D96 -> 0 | G95: =+ESTIMACION!L96 -> 0 | H95: =+'REAL'!L96 -> 0 | I95: 0 | J95: 0
B96: =+ESTIMACION!D97 -> 0 | G96: =+ESTIMACION!L97 -> 0 | H96: =+'REAL'!L97 -> 0 | I96: 0 | J96: 0
B97: =+ESTIMACION!D98 -> 0 | G97: =+ESTIMACION!L98 -> 0 | H97: =+'REAL'!L98 -> 0 | I97: 0 | J97: 0
B98: =+ESTIMACION!D99 -> 0 | G98: =+ESTIMACION!L99 -> 0 | H98: =+'REAL'!L99 -> 0 | I98: 0 | J98: 0
B99: =+ESTIMACION!D100 -> 0 | G99: =+ESTIMACION!L100 -> 0 | H99: =+'REAL'!L100 -> 0 | I99: 0 | J99: 0
B100: =+ESTIMACION!D101 -> 0 | G100: =+ESTIMACION!L101 -> 0 | H100: =+'REAL'!L101 -> 0 | I100: 0 | J100: 0
B101: =+ESTIMACION!D102 -> 0 | G101: =+ESTIMACION!L102 -> 0 | H101: =+'REAL'!L102 -> 0 | I101: 0 | J101: 0
B102: =+ESTIMACION!D103 -> 0 | G102: =+ESTIMACION!L103 -> 0 | H102: =+'REAL'!L103 -> 0 | I102: 0 | J102: 0
B103: =+ESTIMACION!D104 -> 0 | G103: =+ESTIMACION!L104 -> 0 | H103: =+'REAL'!L104 -> 0 | I103: 0 | J103: 0
B104: =+ESTIMACION!D105 -> 0 | G104: =+ESTIMACION!L105 -> 0 | H104: =+'REAL'!L105 -> 0 | I104: 0 | J104: 0
B105: =+ESTIMACION!D106 -> 0 | G105: =+ESTIMACION!L106 -> 0 | H105: =+'REAL'!L106 -> 0 | I105: 0 | J105: 0
B106: =+ESTIMACION!D107 -> 0 | G106: =+ESTIMACION!L107 -> 0 | H106: =+'REAL'!L107 -> 0 | I106: 0 | J106: 0
B107: =+ESTIMACION!D108 -> 0 | G107: =+ESTIMACION!L108 -> 0 | H107: =+'REAL'!L108 -> 0 | I107: 0 | J107: 0
B108: =+ESTIMACION!D109 -> 0 | G108: =+ESTIMACION!L109 -> 0 | H108: =+'REAL'!L109 -> 0 | I108: 0 | J108: 0
B109: =+ESTIMACION!D110 -> 0 | G109: =+ESTIMACION!L110 -> 0 | H109: =+'REAL'!L110 -> 0 | I109: 0 | J109: 0
B110: =+ESTIMACION!D111 -> 0 | G110: =+ESTIMACION!L111 -> 0 | H110: =+'REAL'!L111 -> 0 | I110: 0 | J110: 0
B111: =+ESTIMACION!D112 -> 0 | G111: =+ESTIMACION!L112 -> 0 | H111: =+'REAL'!L112 -> 0 | I111: 0 | J111: 0
B112: =+ESTIMACION!D113 -> 0 | G112: =+ESTIMACION!L113 -> 0 | H112: =+'REAL'!L113 -> 0 | I112: 0 | J112: 0
B113: =+ESTIMACION!D114 -> 0 | G113: =+ESTIMACION!L114 -> 0 | H113: =+'REAL'!L114 -> 0 | I113: 0 | J113: 0
B114: =+ESTIMACION!D115 -> 0 | G114: =+ESTIMACION!L115 -> 0 | H114: =+'REAL'!L115 -> 0 | I114: 0 | J114: 0
B115: =+ESTIMACION!D116 -> 0 | G115: =+ESTIMACION!L116 -> 0 | H115: =+'REAL'!L116 -> 0 | I115: 0 | J115: 0
B116: =+ESTIMACION!D117 -> 0 | G116: =+ESTIMACION!L117 -> 0 | H116: =+'REAL'!L117 -> 0 | I116: 0 | J116: 0
B117: =+ESTIMACION!D118 -> 0 | G117: =+ESTIMACION!L118 -> 0 | H117: =+'REAL'!L118 -> 0 | I117: 0 | J117: 0
B118: =+ESTIMACION!D119 -> 0 | G118: =+ESTIMACION!L119 -> 0 | H118: =+'REAL'!L119 -> 0 | I118: 0 | J118: 0
B119: =+ESTIMACION!D120 -> 0 | G119: =+ESTIMACION!L120 -> 0 | H119: =+'REAL'!L120 -> 0 | I119: 0 | J119: 0
B120: =+ESTIMACION!D121 -> 0 | G120: =+ESTIMACION!L121 -> 0 | H120: =+'REAL'!L121 -> 0 | I120: 0 | J120: 0
B121: =+ESTIMACION!D122 -> 0 | G121: =+ESTIMACION!L122 -> 0 | H121: =+'REAL'!L122 -> 0 | I121: 0 | J121: 0
B122: =+ESTIMACION!D123 -> 0 | G122: =+ESTIMACION!L123 -> 0 | H122: =+'REAL'!L123 -> 0 | I122: 0 | J122: 0
B123: =+ESTIMACION!D124 -> 0 | G123: =+ESTIMACION!L124 -> 0 | H123: =+'REAL'!L124 -> 0 | I123: 0 | J123: 0
B124: =+ESTIMACION!D125 -> 0 | G124: =+ESTIMACION!L125 -> 0 | H124: =+'REAL'!L125 -> 0 | I124: 0 | J124: 0
B125: =+ESTIMACION!D126 -> 0 | G125: =+ESTIMACION!L126 -> 0 | H125: =+'REAL'!L126 -> 0 | I125: 0 | J125: 0
B126: =+ESTIMACION!D127 -> 0 | G126: =+ESTIMACION!L127 -> 0 | H126: =+'REAL'!L127 -> 0 | I126: 0 | J126: 0
B127: =+ESTIMACION!D128 -> 0 | G127: =+ESTIMACION!L128 -> 0 | H127: =+'REAL'!L128 -> 0 | I127: 0 | J127: 0
B128: =+ESTIMACION!D129 -> 0 | G128: =+ESTIMACION!L129 -> 0 | H128: =+'REAL'!L129 -> 0 | I128: 0 | J128: 0
B129: =+ESTIMACION!D130 -> 0 | G129: =+ESTIMACION!L130 -> 0 | H129: =+'REAL'!L130 -> 0 | I129: 0 | J129: 0
B130: =+ESTIMACION!D131 -> 0 | G130: =+ESTIMACION!L131 -> 0 | H130: =+'REAL'!L131 -> 0 | I130: 0 | J130: 0
B131: =+ESTIMACION!D132 -> 0 | G131: =+ESTIMACION!L132 -> 0 | H131: =+'REAL'!L132 -> 0 | I131: 0 | J131: 0
B132: =+ESTIMACION!D133 -> 0 | G132: =+ESTIMACION!L133 -> 0 | H132: =+'REAL'!L133 -> 0 | I132: 0 | J132: 0
B133: =+ESTIMACION!D134 -> 0 | G133: =+ESTIMACION!L134 -> 0 | H133: =+'REAL'!L134 -> 0 | I133: 0 | J133: 0
B134: =+ESTIMACION!D135 -> 0 | G134: =+ESTIMACION!L135 -> 0 | H134: =+'REAL'!L135 -> 0 | I134: 0 | J134: 0
B135: =+ESTIMACION!D136 -> 0 | G135: =+ESTIMACION!L136 -> 0 | H135: =+'REAL'!L136 -> 0 | I135: 0 | J135: 0
B136: =+ESTIMACION!D137 -> 0 | G136: =+ESTIMACION!L137 -> 0 | H136: =+'REAL'!L137 -> 0 | I136: 0 | J136: 0
B137: =+ESTIMACION!D138 -> 0 | G137: =+ESTIMACION!L138 -> 0 | H137: =+'REAL'!L138 -> 0 | I137: 0 | J137: 0
B138: =+ESTIMACION!D139 -> 0 | G138: =+ESTIMACION!L139 -> 0 | H138: =+'REAL'!L139 -> 0 | I138: 0 | J138: 0
B139: =+ESTIMACION!D140 -> 0 | G139: =+ESTIMACION!L140 -> 0 | H139: =+'REAL'!L140 -> 0 | I139: 0 | J139: 0
B140: =+ESTIMACION!D141 -> 0 | G140: =+ESTIMACION!L141 -> 0 | H140: =+'REAL'!L141 -> 0 | I140: 0 | J140: 0
B141: =+ESTIMACION!D142 -> 0 | G141: =+ESTIMACION!L142 -> 0 | H141: =+'REAL'!L142 -> 0 | I141: 0 | J141: 0
B142: =+ESTIMACION!D143 -> 0 | G142: =+ESTIMACION!L143 -> 0 | H142: =+'REAL'!L143 -> 0 | I142: 0 | J142: 0
B143: =+ESTIMACION!D144 -> 0 | G143: =+ESTIMACION!L144 -> 0 | H143: =+'REAL'!L144 -> 0 | I143: 0 | J143: 0
B144: =+ESTIMACION!D145 -> 0 | G144: =+ESTIMACION!L145 -> 0 | H144: =+'REAL'!L145 -> 0 | I144: 0 | J144: 0
B145: =+ESTIMACION!D146 -> 0 | G145: =+ESTIMACION!L146 -> 0 | H145: =+'REAL'!L146 -> 0 | I145: 0 | J145: 0
B146: =+ESTIMACION!D147 -> 0 | G146: =+ESTIMACION!L147 -> 0 | H146: =+'REAL'!L147 -> 0 | I146: 0 | J146: 0
B147: =+ESTIMACION!D148 -> 0 | G147: =+ESTIMACION!L148 -> 0 | H147: =+'REAL'!L148 -> 0 | I147: 0 | J147: 0
B148: =+ESTIMACION!D149 -> 0 | G148: =+ESTIMACION!L149 -> 0 | H148: =+'REAL'!L149 -> 0 | I148: 0 | J148: 0
B149: =+ESTIMACION!D150 -> 0 | G149: =+ESTIMACION!L150 -> 0 | H149: =+'REAL'!L150 -> 0 | I149: 0 | J149: 0
B150: =+ESTIMACION!D151 -> 0 | G150: =+ESTIMACION!L151 -> 0 | H150: =+'REAL'!L151 -> 0 | I150: 0 | J150: 0
B151: =+ESTIMACION!D152 -> 0 | G151: =+ESTIMACION!L152 -> 0 | H151: =+'REAL'!L152 -> 0 | I151: 0 | J151: 0
B152: =+ESTIMACION!D153 -> 0 | G152: =+ESTIMACION!L153 -> 0 | H152: =+'REAL'!L153 -> 0 | I152: 0 | J152: 0
B153: =+ESTIMACION!D154 -> 0 | G153: =+ESTIMACION!L154 -> 0 | H153: =+'REAL'!L154 -> 0 | I153: 0 | J153: 0
B154: =+ESTIMACION!D155 -> 0 | G154: =+ESTIMACION!L155 -> 0 | H154: =+'REAL'!L155 -> 0 | I154: =+H154-G154 -> 0 | J154: =+IFERROR((H154-G154)/G154,0)*100 -> 0
B155: =+ESTIMACION!D156 -> 0 | G155: =+ESTIMACION!L156 -> 0 | H155: =+'REAL'!L156 -> 0 | I155: 0 | J155: 0
B156: =+ESTIMACION!D157 -> 0 | G156: =+ESTIMACION!L157 -> 0 | H156: =+'REAL'!L157 -> 0 | I156: 0 | J156: 0
B157: =+ESTIMACION!D158 -> 0 | G157: =+ESTIMACION!L158 -> 0 | H157: =+'REAL'!L158 -> 0 | I157: 0 | J157: 0
B158: =+ESTIMACION!D159 -> 0 | G158: =+ESTIMACION!L159 -> 0 | H158: =+'REAL'!L159 -> 0 | I158: 0 | J158: 0
B159: =+ESTIMACION!D160 -> 0 | G159: =+ESTIMACION!L160 -> 0 | H159: =+'REAL'!L160 -> 0 | I159: 0 | J159: 0
B160: =+ESTIMACION!D161 -> 0 | G160: =+ESTIMACION!L161 -> 0 | H160: =+'REAL'!L161 -> 0 | I160: 0 | J160: 0
B161: =+ESTIMACION!D162 -> 0 | G161: =+ESTIMACION!L162 -> 0 | H161: =+'REAL'!L162 -> 0 | I161: 0 | J161: 0
B162: =+ESTIMACION!D163 -> 0 | G162: =+ESTIMACION!L163 -> 0 | H162: =+'REAL'!L163 -> 0 | I162: 0 | J162: 0
B163: =+ESTIMACION!D164 -> 0 | G163: =+ESTIMACION!L164 -> 0 | H163: =+'REAL'!L164 -> 0 | I163: 0 | J163: 0
B164: =+ESTIMACION!D165 -> 0 | G164: =+ESTIMACION!L165 -> 0 | H164: =+'REAL'!L165 -> 0 | I164: 0 | J164: 0
B165: =+ESTIMACION!D166 -> 0 | G165: =+ESTIMACION!L166 -> 0 | H165: =+'REAL'!L166 -> 0 | I165: 0 | J165: 0
B166: =+ESTIMACION!D167 -> 0 | G166: =+ESTIMACION!L167 -> 0 | H166: =+'REAL'!L167 -> 0 | I166: 0 | J166: 0
B167: =+ESTIMACION!D168 -> 0 | G167: =+ESTIMACION!L168 -> 0 | H167: =+'REAL'!L168 -> 0 | I167: 0 | J167: 0
B168: =+ESTIMACION!D169 -> 0 | G168: =+ESTIMACION!L169 -> 0 | H168: =+'REAL'!L169 -> 0 | I168: 0 | J168: 0
B169: =+ESTIMACION!D170 -> 0 | G169: =+ESTIMACION!L170 -> 0 | H169: =+'REAL'!L170 -> 0 | I169: 0 | J169: 0
B170: =+ESTIMACION!D171 -> 0 | G170: =+ESTIMACION!L171 -> 0 | H170: =+'REAL'!L171 -> 0 | I170: 0 | J170: 0
B171: =+ESTIMACION!D172 -> 0 | G171: =+ESTIMACION!L172 -> 0 | H171: =+'REAL'!L172 -> 0 | I171: 0 | J171: 0
B172: =+ESTIMACION!D173 -> 0 | G172: =+ESTIMACION!L173 -> 0 | H172: =+'REAL'!L173 -> 0 | I172: 0 | J172: 0
B173: =+ESTIMACION!D174 -> 0 | G173: =+ESTIMACION!L174 -> 0 | H173: =+'REAL'!L174 -> 0 | I173: 0 | J173: 0
B174: =+ESTIMACION!D175 -> 0 | G174: =+ESTIMACION!L175 -> 0 | H174: =+'REAL'!L175 -> 0 | I174: 0 | J174: 0
B175: =+ESTIMACION!D176 -> 0 | G175: =+ESTIMACION!L176 -> 0 | H175: =+'REAL'!L176 -> 0 | I175: 0 | J175: 0
B176: =+ESTIMACION!D177 -> 0 | G176: =+ESTIMACION!L177 -> 0 | H176: =+'REAL'!L177 -> 0 | I176: 0 | J176: 0
B177: =+ESTIMACION!D178 -> 0 | G177: =+ESTIMACION!L178 -> 0 | H177: =+'REAL'!L178 -> 0 | I177: 0 | J177: 0
B178: =+ESTIMACION!D179 -> 0 | G178: =+ESTIMACION!L179 -> 0 | H178: =+'REAL'!L179 -> 0 | I178: 0 | J178: 0
B179: =+ESTIMACION!D180 -> 0 | G179: =+ESTIMACION!L180 -> 0 | H179: =+'REAL'!L180 -> 0 | I179: 0 | J179: 0
B180: =+ESTIMACION!D181 -> 0 | G180: =+ESTIMACION!L181 -> 0 | H180: =+'REAL'!L181 -> 0 | I180: 0 | J180: 0
B181: =+ESTIMACION!D182 -> 0 | G181: =+ESTIMACION!L182 -> 0 | H181: =+'REAL'!L182 -> 0 | I181: 0 | J181: 0
B182: =+ESTIMACION!D183 -> 0 | G182: =+ESTIMACION!L183 -> 0 | H182: =+'REAL'!L183 -> 0 | I182: 0 | J182: 0
B183: =+ESTIMACION!D184 -> 0 | G183: =+ESTIMACION!L184 -> 0 | H183: =+'REAL'!L184 -> 0 | I183: 0 | J183: 0
B184: =+ESTIMACION!D185 -> 0 | G184: =+ESTIMACION!L185 -> 0 | H184: =+'REAL'!L185 -> 0 | I184: 0 | J184: 0
B185: =+ESTIMACION!D186 -> 0 | G185: =+ESTIMACION!L186 -> 0 | H185: =+'REAL'!L186 -> 0 | I185: 0 | J185: 0
B186: =+ESTIMACION!D187 -> 0 | G186: =+ESTIMACION!L187 -> 0 | H186: =+'REAL'!L187 -> 0 | I186: 0 | J186: 0
B187: =+ESTIMACION!D188 -> 0 | G187: =+ESTIMACION!L188 -> 0 | H187: =+'REAL'!L188 -> 0 | I187: 0 | J187: 0
B188: =+ESTIMACION!D189 -> 0 | G188: =+ESTIMACION!L189 -> 0 | H188: =+'REAL'!L189 -> 0 | I188: 0 | J188: 0
B189: =+ESTIMACION!D190 -> 0 | G189: =+ESTIMACION!L190 -> 0 | H189: =+'REAL'!L190 -> 0 | I189: 0 | J189: 0
B190: =+ESTIMACION!D191 -> 0 | G190: =+ESTIMACION!L191 -> 0 | H190: =+'REAL'!L191 -> 0 | I190: 0 | J190: 0
B191: =+ESTIMACION!D192 -> 0 | G191: =+ESTIMACION!L192 -> 0 | H191: =+'REAL'!L192 -> 0 | I191: 0 | J191: 0
B192: =+ESTIMACION!D193 -> 0 | G192: =+ESTIMACION!L193 -> 0 | H192: =+'REAL'!L193 -> 0 | I192: 0 | J192: 0
B193: =+ESTIMACION!D194 -> 0 | G193: =+ESTIMACION!L194 -> 0 | H193: =+'REAL'!L194 -> 0 | I193: 0 | J193: 0
B194: =+ESTIMACION!D195 -> 0 | G194: =+ESTIMACION!L195 -> 0 | H194: =+'REAL'!L195 -> 0 | I194: 0 | J194: 0
B195: =+ESTIMACION!D196 -> 0 | G195: =+ESTIMACION!L196 -> 0 | H195: =+'REAL'!L196 -> 0 | I195: 0 | J195: 0
B196: =+ESTIMACION!D197 -> 0 | G196: =+ESTIMACION!L197 -> 0 | H196: =+'REAL'!L197 -> 0 | I196: 0 | J196: 0
B197: =+ESTIMACION!D198 -> 0 | G197: =+ESTIMACION!L198 -> 0 | H197: =+'REAL'!L198 -> 0 | I197: 0 | J197: 0
B198: =+ESTIMACION!D199 -> 0 | G198: =+ESTIMACION!L199 -> 0 | H198: =+'REAL'!L199 -> 0 | I198: 0 | J198: 0
B199: =+ESTIMACION!D200 -> 0 | G199: =+ESTIMACION!L200 -> 0 | H199: =+'REAL'!L200 -> 0 | I199: 0 | J199: 0
B200: =+ESTIMACION!D201 -> 0 | G200: =+ESTIMACION!L201 -> 0 | H200: =+'REAL'!L201 -> 0 | I200: 0 | J200: 0

Sheet CM OT-HORAS
V2: Etiquetas de fila | W2: Cuenta de HORAS | Y2: Etiquetas de fila | Z2: Cuenta de HORAS | AB2: Etiquetas de fila | AC2: Cuenta de HORAS
V3: (en blanco) | Y3: (en blanco) | AB3: (en blanco)
V4: APLICATIVO_1 3.1 | W4: 2 | Y4: MEJORA-1235 | Z4: 7 | AB4: v3.1 Análisis y validación funcional en desa | AC4: 9
V5: CLICSALUD 3.1 | W5: 20 | Y5: INCIDENCIA-1125 | Z5: 10 | AB5: CS- análisis 3.1 | AC5: 3
V6: CLICSALUD 3.2.1 | W6: 5 | Y6: MEJORA-1426 | Z6: 2 | AB6: ClicSalud 3.1 - Mejoras EIDAS | AC6: 4
V7: CLICSALUD 4.0 | W7: 1 | Y7: INCI3ENCIALU-1125 | Z7: 3 | AB7: CS- análisis 3.2.1 | AC7: 1
V8: Total general | W8: 28 | Y8: MEJORA-2426 | Z8: 3 | AB8: v3.2.1 Análisis y validación funcional en desa | AC8: 2
Y9: MEJORALU-1426 | Z9: 3 | AB9: CS 3.2.1 - Cambios en EIDAS | AC9: 1
Y10: Total general | Z10: 28 | AB10: ClicSalud 3.2.1 - Mejoras EIDAS | AC10: 1
AB11: CLICSALUD v3.1.0.1 Instalaciones en Calidad y entrega a Cliente | AC11: 1
AB12: CS 3.1 - Cambios en EIDAS | AC12: 1
AB13: Gestión | AC13: 2
AB14: Validación funcional CS+ v3.1 PRE | AC14: 1
AB15: v3.1 Cambios EIDAS Implantación PRO | AC15: 1
AB16: v3.2 Análisis y validación funcional en desa | AC16: 1
AB17: Total general | AC17: 28

Sheet CM OT-HBS
V2: Etiquetas de fila | W2: Suma de HBS | Y2: Etiquetas de fila | Z2: Suma de HBS | AB2: Etiquetas de fila | AC2: Suma de HBS
V3: (en blanco) | W3: 0 | Y3: (en blanco) | Z3: 0 | AB3: (en blanco) | AC3: 0
V4: APLICATIVO_1 3.1 | W4: 13.125 | Y4: MEJORA-1235 | Z4: 52 | AB4: v3.1 Análisis y validación funcional en desa | AC4: 65.5625
V5: CLICSALUD 3.1 | W5: 168.0625 | Y5: INCIDENCIA-1125 | Z5: 74.0625 | AB5: CS- análisis 3.1 | AC5: 19.25
V6: CLICSALUD 3.2.1 | W6: 44.25 | Y6: MEJORA-1426 | Z6: 9.125 | AB6: ClicSalud 3.1 - Mejoras EIDAS | AC6: 29.25
V7: CLICSALUD 4.0 | W7: 200 | Y7: INCI3ENCIALU-1125 | Z7: 19.5 | AB7: CS- análisis 3.2.1 | AC7: 4.375
V8: Total general | W8: 425.4375 | Y8: MEJORA-2426 | Z8: 227 | AB8: v3.2.1 Análisis y validación funcional en desa | AC8: 27.125
Y9: MEJORALU-1426 | Z9: 43.75 | AB9: CS 3.2.1 - Cambios en EIDAS | AC9: 9
Y10: Total general | Z10: 425.4375 | AB10: ClicSalud 3.2.1 - Mejoras EIDAS | AC10: 3.75
AB11: CLICSALUD v3.1.0.1 Instalaciones en Calidad y entrega a Cliente | AC11: 10
AB12: CS 3.1 - Cambios en EIDAS | AC12: 11.25
AB13: Gestión | AC13: 36
AB14: Validación funcional CS+ v3.1 PRE | AC14: 6.125
AB15: v3.1 Cambios EIDAS Implantación PRO | AC15: 3.75
AB16: v3.2 Análisis y validación funcional en desa | AC16: 200
AB17: Total general | AC17: 425.4375
